Cogmind - Beta 15 @@@ ROGUE MODE // 2025.05.09 @ 17:15:01 Player: 7604 Result: Destroyed by EXE-6 with Concept XC Strikerail Performance ------------- Evolutions (8) 4000 Regions Visited (38) 7600 Robots Destroyed (294) 1470 Value Destroyed (8413) 8413 Prototype IDs (158) 3160 Alien Tech Used (3) 600 Bonus (5326) 5326 TOTAL SCORE: 30569 Bonus ------- High Alert Combat Kills 232 Follower Combat Kills 2253 Network Hubs Disabled 200 Met Data Miner 300 Met Zhirov 300 Met R17 at Cetus 500 Met R17 at Research 2000 Friendly Fire -459 Cogmind --------- Core Integrity 0/1450 Matter 381/1050 Energy 313/900 System Corruption 17% Temperature Cool (0) Movement Core (50) Location -2/Protoforge Parts ------- > --- POWER (2) -------- (None) > --- PROPULSION (6) --- (None) > --- UTILITY (13) ----- Concept Chromion Battery Concept NT7 Matterbank Spectral Analyzer Experimental Signal Interpreter 0b10 Alert Chip Experimental Core Analyzer Experimental Hacking Suite Advanced System Shield > --- WEAPON (2) ------- (None) > --- INVENTORY (5) ---- AEGIS Remote Shield Subatomic Replicator Cooled Nova Cannon Perforator Peak State ------------ > --- POWER ------------ Micro Antimatter Reactor Micro Antimatter Reactor > --- PROPULSION ------- Electron Diverter Improved Diametric Drive Improved Diametric Drive Cooled Impulse Thruster Impulse Thruster Array > --- UTILITY ---------- Medium Storage Unit Spectral Analyzer Advanced Sensor Array Experimental Signal Interpreter 0b10 Alert Chip Experimental Core Analyzer Nanoactuators Experimental Reaction Control System Centrium Medium Armor Plating Improved Hacking Suite Advanced Hacking Suite Advanced System Shield Authchip [Processor] > --- WEAPON ----------- Advanced Datajack Vibroblade > --- INVENTORY -------- Micro Antimatter Reactor Diametric Drive Cooled Impulse Thruster Improved Q-thruster Advanced Weight Redist. System Transdimensional Reconstructor Subatomic Replicator Nova Cannon Enhanced Nova Cannon Fusion Bomb Launcher [Rating: 178] Favorites ----------- Power Heavy Ion Engine Engine Heavy Ion Engine Power Core Micro Nuclear Core Reactor Micro Antimatter Reactor Propulsion Light Treads Treads Light Treads Flight Unit Improved Cesium-ion Thruster Utility Improved Hacking Suite Device Seismic Detector Storage High-capacity Storage Unit Processor Experimental Signal Interpreter Hackware Improved Hacking Suite Protection Medium Armor Plating Weapon Advanced Beam Cannon Energy Gun Medium Laser Energy Cannon Advanced Beam Cannon Ballistic Gun Advanced KE Penetrator Ballistic Cannon Bore Cannon Launcher Micro-nuke Launcher Special Weapon Remote Datajack Impact Weapon Great Maul Slashing Weapon Katana Piercing Weapon Enhanced Force Lance Special Melee Weapon Datajack Build | -11 -10 -10 -9 -9 -9 -8 -8 -7 -7 -7 -7 -7 -7 -6 -6 -6 -6 -6 -6 -6 -5 -5 -5 -5 -5 -5 -5 -4 -4 -4 -4 -4 -4 -3 -3 -2 -2 -2 ------- Run | Yrd Mat Min Mat Min Exi Min Mat Fac Was Fac Low Low Zio Pro Fac Was Fac Low Low Dat Pro Fac Was Fac Upp Upp Zhi Pro Fac Ext Cet Arc Hub Res Qua Res Tes Frg Slots Evolved 16 | . . . 2 . . . 2 2 . . . . . . 2 . . . . . . 2 . . . . . . 2 . . . . 2 . 2 . . Power 1 | . . . . . . . . . . . . . . . . . . . . . . . . . . . . . 1 . . . . . . . . . Propulsion 4 | . . . . . . . . 2 . . . . . . 1 . . . . . . . . . . . . . . . . . . . . 1 . . Utility 11 | . . . 2 . . . 2 . . . . . . . 1 . . . . . . 2 . . . . . . 1 . . . . 2 . 1 . . Weapon . | . . . . . . . . . . . . . . . . . . . . . . . . . . . . . . . . . . . . . . . Parts Attached 304 | 7 11 . 43 1 1 . 26 16 2 19 . 1 4 . 3 . 9 1 . . . 17 . 14 . 3 2 1 9 28 11 1 2 32 7 11 15 7 Power 37 | 1 1 . 4 . . . 1 1 . 4 . . . . . . 1 . . . . 1 . 1 . . . . 2 5 2 . . 3 1 4 2 3 Engine 13 | 1 1 . 4 . . . . . . 1 . . . . . . . . . . . . . . . . . . . . . . . 1 . 2 1 2 Core 12 | . . . . . . . 1 1 . 3 . . . . . . 1 . . . . 1 . 1 . . . . 2 2 . . . . . . . . Reactor 12 | . . . . . . . . . . . . . . . . . . . . . . . . . . . . . . 3 2 . . 2 1 2 1 1 Propulsion 64 | 2 3 . 13 . . . 8 3 1 4 . . . . 1 . . . . . . 2 . 3 . . . . . 8 4 . . 10 . 1 1 . Treads 37 | 2 3 . 13 . . . 7 . . . . . . . . . . . . . . . . . . . . . . 8 4 . . . . . . . Leg . | . . . . . . . . . . . . . . . . . . . . . . . . . . . . . . . . . . . . . . . Wheel . | . . . . . . . . . . . . . . . . . . . . . . . . . . . . . . . . . . . . . . . Hover . | . . . . . . . . . . . . . . . . . . . . . . . . . . . . . . . . . . . . . . . Flight 27 | . . . . . . . 1 3 1 4 . . . . 1 . . . . . . 2 . 3 . . . . . . . . . 10 . 1 1 . Utility 131 | 2 3 . 11 . 1 . 9 11 . 8 . 1 4 . 2 . 7 1 . . . 14 . 9 . . 2 1 5 6 2 1 1 14 1 5 6 4 Device 55 | 1 2 . 4 . . . 3 6 . 1 . 1 . . 1 . 3 1 . . . 5 . 6 . . 1 . 1 3 . . 1 8 1 3 2 1 Storage 17 | 1 1 . 1 . 1 . . 1 . 1 . . . . 1 . . . . . . . . . . . . 1 1 2 . . . 1 . . 3 2 Processor 9 | . . . . . . . . . . . . . 3 . . . . . . . . . . . . . . . 1 1 . . . 2 . 1 . 1 Hackware 29 | . . . . . . . 1 2 . 6 . . 1 . . . 3 . . . . 8 . 2 . . . . 2 . . . . 2 . 1 1 . Protection 21 | . . . 6 . . . 5 2 . . . . . . . . 1 . . . . 1 . 1 . . 1 . . . 2 1 . 1 . . . . Artifact . | . . . . . . . . . . . . . . . . . . . . . . . . . . . . . . . . . . . . . . . Weapon 72 | 2 4 . 15 1 . . 8 1 1 3 . . . . . . 1 . . . . . . 1 . 3 . . 2 9 3 . 1 5 5 1 6 . Energy Gun 15 | 2 1 . 4 . . . 4 . . . . . . . . . . . . . . . . . . . . . . 2 . . . . . . 2 . Energy Cannon 10 | . . . 5 . . . . . . . . . . . . . . . . . . . . . . . . . . . 1 . . 1 1 1 1 . Ballistic Gun 13 | . 2 . 2 . . . 2 . 1 . . . . . . . . . . . . . . . . . . . . 2 2 . 1 1 . . . . Ballistic Cannon 7 | . . . . . . . . . . . . . . . . . . . . . . . . . . 1 . . . 4 . . . . . . 2 . Launcher 9 | . 1 . 3 . . . . . . 2 . . . . . . . . . . . . . . . . . . . 1 . . . 1 1 . . . Special Weapon 2 | . . . . . . . 2 . . . . . . . . . . . . . . . . . . . . . . . . . . . . . . . Impact Weapon 1 | . . . . . . . . . . . . . . . . . . . . . . . . . . . . . 1 . . . . . . . . . Slashing Weapon 6 | . . . 1 . . . . 1 . 1 . . . . . . 1 . . . . . . . . . . . . . . . . . 2 . . . Piercing Weapon 3 | . . . . . . . . . . . . . . . . . . . . . . . . . . . . . 1 . . . . 1 . . 1 . Special Melee Weapon 6 | . . . . 1 . . . . . . . . . . . . . . . . . . . 1 . 2 . . . . . . . 1 1 . . . Unidentified Prototypes 30 | . . . 4 . . . 2 . . 1 . . 4 . . . 1 . . . . . . . . . 2 1 . . 3 . . 4 1 1 6 . Corrupted Parts 1 | . . . . . . . . . . . . . . . . . . . . . . . . . . . . . . . . . . . 1 . . . System Corruption 7 | . . . . . . . . . . . . . . . . . . . . . . . . . . . . . . . . . . . 7 . . . Parts Lost 65 | . 4 . 5 . . . 1 . . 3 . . . . . . 1 . 1 . . 4 . 3 1 . . . 3 2 3 . 1 2 5 6 5 15 Power 14 | . 1 . 1 . . . . . . 1 . . . . . . . . . . . 1 . 1 . . . . 2 . . . . . 1 1 2 3 Propulsion 13 | . . . 1 . . . . . . . . . . . . . . . . . . 1 . 1 . . . . . . 2 . . . . 3 . 5 Utility 26 | . 1 . 2 . . . 1 . . 1 . . . . . . 1 . 1 . . 2 . . . . . . . 1 1 . 1 2 2 1 2 7 Weapon 12 | . 2 . 1 . . . . . . 1 . . . . . . . . . . . . . 1 1 . . . 1 1 . . . . 2 1 1 . Highest Loss Streak 11 | . 2 . 2 . . . 1 . . 2 . . . . . . 1 . 1 . . 2 . 2 1 . . . 2 2 2 . 1 1 2 4 3 11 To Critical Strikes 1 | . . . . . . . . . . . . . . . . . . . . . . . . . . . . . . . 1 . . . . . . . Average Backups 14 | 3 16 20 19 20 19 20 19 10 10 9 10 10 9 10 9 9 9 9 10 10 9 9 9 9 8 9 10 10 9 9 11 12 12 9 9 8 8 8 Power . | . . . . . . . . . . . . 1 . . . 1 . 1 1 1 1 1 1 . . . . . . . . . . . . . . . Propulsion 2 | . 2 3 3 4 4 4 4 . . 1 2 2 1 1 . . . . . . . . 1 1 1 1 1 1 . 3 5 5 5 2 2 1 . . Utility 7 | 2 10 11 10 11 10 11 10 7 8 7 6 6 7 8 7 7 7 8 8 8 8 6 6 6 7 7 7 7 5 4 2 3 3 3 4 1 3 3 Weapon 2 | . 2 5 4 4 4 4 4 2 1 . 1 1 1 1 1 1 1 . 1 1 . . 1 . . 1 1 1 1 . 2 3 2 2 1 2 3 2 Tool/Special . | . . . . . . . . . . . . . . . . . . . . . . . . . . . . . . . . . . . . . . . Unused Backups 60 | . 4 . 8 . 4 . 5 4 1 1 . . 4 . 2 . 5 . . . . 1 . 1 . 1 . . 1 5 . . . 6 3 1 . 3 Power 5 | . . . . . 1 . . . . . . . 1 . 2 . . . . . . . . . . . . . . . . . . . . . . 1 Propulsion 7 | . . . 1 . . . 1 . . 1 . . . . . . 1 . . . . . . . . . . . . 1 . . . 1 . 1 . . Utility 34 | . 3 . 4 . 3 . 2 3 . . . . 3 . . . 4 . . . . 1 . 1 . . . . 1 4 . . . 2 2 . . 1 Weapon 11 | . 1 . 3 . . . 2 1 1 . . . . . . . . . . . . . . . . . . . . . . . . 3 . . . . Tool/Special 3 | . . . . . . . . . . . . . . . . . . . . . . . . . . 1 . . . . . . . . 1 . . 1 Average Slot Usage (%) 94 | . 96 100 99 100 100 100 99 98 100 89 92 92 92 92 92 91 92 93 92 86 86 87 94 96 88 94 100 99 91 86 87 89 88 85 91 90 84 79 Engine 5 | . 14 14 10 11 11 11 7 . . . . . . . . . . . . . . . . . . . . . . . . . . 3 3 . 2 2 Core 2 | . . . . . . . 1 7 7 6 7 7 7 7 6 6 6 6 6 6 6 4 5 5 5 5 5 5 6 5 . . . . . . . 1 Reactor 1 | . . . . . . . . . . . . . . . . . . . . . . . . . . . . . . 4 10 10 10 4 4 6 3 1 Treads 12 | . 28 28 22 22 22 22 17 . . . . . . . . . . . . . . . . . . . . . . 13 15 15 15 . . . . . Flight 10 | . . . . . . . . 28 30 30 30 30 30 30 33 33 32 33 33 33 33 25 29 29 29 29 29 29 26 5 . . . 15 19 20 17 17 Device 15 | . 14 14 21 22 22 22 26 15 15 14 15 15 7 7 12 11 13 13 12 6 6 10 11 12 7 11 11 11 9 5 1 2 6 9 10 12 14 9 Storage 8 | . 14 14 11 11 11 11 9 7 7 7 7 7 7 7 6 6 6 6 6 6 6 5 5 5 5 5 5 5 5 5 5 5 5 4 4 4 4 4 Processor 4 | . . . . . . . . . . . . . 6 7 6 6 6 6 6 6 6 5 5 5 5 5 5 5 10 10 15 15 15 18 19 17 17 17 Hackware 11 | . . . . . . . 8 22 23 21 23 23 23 23 20 20 20 20 20 20 20 26 23 23 23 23 23 23 21 21 15 15 15 15 17 14 16 14 Protection 5 | . . . 10 11 11 11 9 . . . . . . . . . . . . . . . 5 3 8 5 5 5 5 4 12 12 8 5 3 3 2 3 Energy Gun 3 | . 20 14 4 . . . 7 . . . . . . . . . . . . . . . . . . . . . . . . . . . . . 1 . Energy Cannon 4 | . . . 15 21 . 22 2 . . . . . . . . . . . . . . . . . . . . . . . . . . 2 . . . . Ballistic Gun 2 | . 4 14 2 . . . 8 . . . . . . . . . . . . . . . . . . . . . . 2 7 10 10 1 . . . . Slashing Weapon 2 | . . . . . 11 . . 6 7 6 7 7 7 7 6 6 6 6 6 6 6 5 5 5 . . . . . . . . . . 2 3 3 . Peak Build Rating 178 | 7 9 9 22 22 23 23 35 43 43 47 49 47 58 58 68 64 73 74 70 67 71 84 84 89 96 95 97 96 109 133 152 153 152 150 143 178 167 176 Average Rating 60 | 6 8 9 20 21 20 23 30 37 38 39 45 45 56 58 67 63 68 70 69 67 67 78 84 85 85 89 94 95 100 116 143 152 150 126 137 165 151 144 On Entrance 72 | . 7 9 9 22 20 23 23 34 38 39 45 45 45 58 58 68 64 70 70 67 67 67 84 84 88 83 95 96 96 88 132 152 152 142 142 133 137 156 Naked Turns . | . . . . . . . . . . . . . . . . . . . . . . . . . . . . . . . . . . . . . . . Heaviest Build 85 | 15 50 46 65 69 65 65 71 61 20 20 20 20 20 19 25 20 21 21 21 20 20 24 24 25 24 20 28 28 28 83 85 85 83 85 44 45 51 46 Greatest Support 187 | 40 40 40 40 40 40 40 42 42 21 22 22 22 22 22 28 28 28 26 22 22 22 30 32 29 29 29 29 29 29 170 187 187 187 187 47 48 46 49 Greatest Overweight (x) 13 | . 1 1 1 1 1 1 1 6 . . . . . . . . . . . . . 6 . . . . . . . 6 . . . 12 . 13 11 12 Average Overweight (x) . | . . 1 1 1 1 1 1 . . . . . . . . . . . . . . . . . . . . . . . . . . . . . . . Largest Inventory Capacity 20 | 8 20 20 20 20 20 20 20 20 10 10 10 10 10 10 10 10 10 10 10 10 10 10 10 10 10 10 10 10 10 15 15 15 15 15 10 10 10 10 Average Capacity 14 | 7 19 20 20 20 20 20 20 10 10 10 10 10 10 10 10 10 10 10 10 10 10 10 10 10 10 10 10 10 10 11 15 15 15 10 10 10 10 9 Most Carried 20 | 7 20 20 20 20 20 20 20 20 10 10 10 10 10 10 10 10 10 10 10 10 10 10 9 10 9 10 10 10 10 15 15 15 15 15 10 10 10 10 Average Carried 14 | 3 16 20 19 20 19 20 19 10 10 9 9 10 9 10 9 9 9 9 10 10 9 9 9 9 8 9 10 10 9 11 13 15 14 9 9 8 9 9 Final Capacity 20 | 8 20 20 20 20 20 20 20 10 10 10 10 10 10 10 10 10 10 10 10 10 10 10 10 10 10 10 10 10 10 15 15 15 15 10 10 10 10 5 Final Carried 20 | 7 20 20 20 20 20 20 20 10 10 10 10 10 10 10 10 9 10 10 10 10 10 9 9 9 9 10 10 10 10 14 15 15 15 10 10 7 10 5 Class Distribution -------------------- 28% | Mutant 21% | Hacker-Scout 21% | Scavenger-Mutant 13% | Hacker-Sprinter 9% | Hacker-Mutant Dominant Class ---------------- Mutant | -10/Materials Mutant | -10/Mines Scavenger-Mutant | -9/Materials Mutant | -9/Mines Scavenger-Mutant | -9/Exiles Mutant | -8/Mines Mutant | -8/Materials Hacker-Sprinter | -7/Factory Hacker-Sprinter | -7/Waste Hacker-Sprinter | -7/Factory Hacker-Sprinter | -7/Lower Caves Hacker-Sprinter | -7/Lower Caves Hacker-Sprinter | -7/Zion Hacker-Sprinter | -6/Proximity Caves Hacker-Sprinter | -6/Factory Hacker-Sprinter | -6/Waste Hacker-Scout | -6/Factory Hacker-Scout | -6/Lower Caves Hacker-Scout | -6/Lower Caves Hacker-Sprinter | -6/Data Miner Hacker-Sprinter | -5/Proximity Caves Wizard-Scout | -5/Factory Hacker-Scout | -5/Waste Hacker-Scout | -5/Factory Hacker-Sprinter | -5/Upper Caves Hacker-Scout | -5/Upper Caves Hacker-Scout | -5/Zhirov Hacker-Scout | -4/Proximity Caves Hacker-Scout | -4/Factory Hacker-Mutant | -4/Extension Scavenger-Mutant | -4/Cetus Scavenger-Mutant | -4/Archives Scavenger-Skirmisher | -4/Hub_04(d) Hacker-Scout | -3/Research Hacker-Scout | -3/Quarantine Hacker-Scout | -2/Research Hacker-Scout | -2/Testing Hacker-Scout | -2/Protoforge Resources | -11 -10 -10 -9 -9 -9 -8 -8 -7 -7 -7 -7 -7 -7 -6 -6 -6 -6 -6 -6 -6 -5 -5 -5 -5 -5 -5 -5 -4 -4 -4 -4 -4 -4 -3 -3 -2 -2 -2 ----------- Run | Yrd Mat Min Mat Min Exi Min Mat Fac Was Fac Low Low Zio Pro Fac Was Fac Low Low Dat Pro Fac Was Fac Upp Upp Zhi Pro Fac Ext Cet Arc Hub Res Qua Res Tes Frg Matter Collected 8018 | 270 184 . 843 222 . 139 846 262 40 343 53 20 40 10 . . 205 101 . . 24 287 . 106 84 190 . 156 33 958 403 148 87 692 130 336 595 211 Remotely . | . . . . . . . . . . . . . . . . . . . . . . . . . . . . . . . . . . . . . . . Salvage Created 10935 | 249 743 . 1865 446 . 100 1229 260 284 348 48 . . . . . 194 46 . . 71 415 . 55 43 . . . . 1851 150 405 74 703 269 394 510 183 Parts 633 | 25 46 . 118 25 . 3 72 13 6 22 6 . . . . . 8 6 . . 9 18 . 6 2 . . . . 82 6 21 3 44 23 28 21 20 Haulers Intercepted 22 | . 2 . 6 . . . 2 1 . 1 . . . . . . 1 . . . . 1 . . . . . . . 4 . . . 3 1 . . . Recyclers Shooed 10 | 2 . . 1 . . . 1 . . . . . . . . . . . . . . . . . . . . . . 6 . . . . . . . . Parts Field Recycled . | . . . . . . . . . . . . . . . . . . . . . . . . . . . . . . . . . . . . . . . Retrieved Matter . | . . . . . . . . . . . . . . . . . . . . . . . . . . . . . . . . . . . . . . . Parts Self-Destructed 22 | . . . . . . . . . . . 3 . . 4 . . . 4 . . 8 . . . 1 2 . . . . . . . . . . . . Prevented 3 | . . . . . . . . . . . . . . . . . . . . . . . . . . 3 . . . . . . . . . . . . Kills | -11 -10 -10 -9 -9 -9 -8 -8 -7 -7 -7 -7 -7 -7 -6 -6 -6 -6 -6 -6 -6 -5 -5 -5 -5 -5 -5 -5 -4 -4 -4 -4 -4 -4 -3 -3 -2 -2 -2 ------- Run | Yrd Mat Min Mat Min Exi Min Mat Fac Was Fac Low Low Zio Pro Fac Was Fac Low Low Dat Pro Fac Was Fac Upp Upp Zhi Pro Fac Ext Cet Arc Hub Res Qua Res Tes Frg Combat Hostiles Destroyed 172 | . 17 . 35 11 . . 29 4 . 11 4 . . . . . . 5 . . 5 7 . . 2 . . . . 16 2 4 1 4 5 5 2 3 Melee 16 | . . . . . . . . 4 . 5 . . . . . . . . . . . 2 . . . . . . . . . . . . 1 2 . 2 Guns 53 | . 12 . 17 . . . 16 . . . . . . . . . . . . . . . . . . . . . . 1 2 4 1 . . . . . Cannons 31 | . . . 12 5 . . 10 . . . . . . . . . . . . . . . . . . . . . . . . . . . 1 . 2 1 AOE 70 | . 4 . 5 6 . . 3 . . 6 4 . . . . . . 5 . . 5 5 . . 2 . . . . 15 . . . 4 3 3 . . Classes Destroyed 16 | 2 6 . 4 1 . . . 1 . . . . . . . . . . . . . . . . . . . . . 1 . . . . . . . 1 Worker 18 | 2 2 . 2 1 . . . . . . . . . . . . . . . . . 1 . . . . . . . 3 . . . . . 1 3 3 Builder 12 | . 1 . . . . . . . . . . . . . . . . . . . . . . . . . . . . 2 . . . 5 . 2 . 2 Tunneler 13 | 9 . . . . . . . . . . . . . . . . . . . . . . . . . . . . . 4 . . . . . . . . Hauler 22 | . 2 . 6 . . . 2 1 . 1 . . . . . . 1 . . . . 1 . . . . . . . 4 . . . 3 1 . . . Recycler 16 | . . . 1 1 . 1 1 . . . . . . . . . . . . . . . . . . . . . . 7 . . . 1 . 1 3 . Mechanic 2 | . . . 1 . . . . . . . . . . . . . . . . . . . . . . . . . . 1 . . . . . . . . Operator 12 | . 3 . 2 . . . 1 . . 2 . . . . . . . . . . . . . 1 . . . . . . . 1 . . 2 . . . Drone 2 | . . . . . . . . . . . . . . . . . . . . . . . . . . . . . . . . . . . . . . 2 Watcher 25 | . 3 . 5 . . . 2 2 . 1 . . . . . . 3 . . . . 2 . 1 . . . . . 1 . . . 2 . 3 . . Swarmer 74 | . 6 . 9 . . . 13 2 . 7 4 . . . . . . 5 . . 5 . . . . . . . . 12 . . . 4 3 4 . . Grunt 55 | . 11 . 15 8 . . 9 1 . 2 . . . . . . . . . . . 5 . . . . . . . 3 . . 1 . . . . . Brawler 2 | . . . . 2 . . . . . . . . . . . . . . . . . . . . . . . . . . . . . . . . . . Duelist 2 | . . . 1 1 . . . . . . . . . . . . . . . . . . . . . . . . . . . . . . . . . . Sentry 21 | . . . 10 . . . 7 . . . . . . . . . . . . . . . . . . . . . . . . 4 . . . . . . Programmer 13 | . . . . . . . . 1 . 2 . . . . . . . . . . . 2 . . 2 . . . . . . . . . 2 1 2 1 Behemoth 1 | . . . . . . . . . . . . . . . . . . . . . . . . . . . . . . 1 . . . . . . . . Cetus Guard 2 | . . . . . . . . . . . . . . . . . . . . . . . . . . . . . . . 2 . . . . . . . Savage 1 | . . . . . . . . . . . . . . . . . . . . . . . . . . . . . . 1 . . . . . . . . Butcher 1 | . . . . . . . . . . . . . . . . . . . . . . . . . . . . . . 1 . . . . . . . . Best Kill Streak 8 | 4 7 . 6 8 . 1 5 2 . 4 4 . . . . . 1 4 . . 5 6 . 1 2 . . . . 8 1 1 1 4 3 4 2 2 Combat Bots Only 6 | . 5 . 5 6 . . 5 2 . 4 4 . . . . . . 4 . . 5 5 . . 2 . . . . 5 1 1 1 4 3 4 2 1 Max Kills in Single Turn 5 | 1 3 . 3 4 . 1 3 1 . 2 4 . . . . . 1 2 . . 5 3 . 1 1 . . . . 5 1 1 1 4 2 2 2 1 Gunslinging . | . . . . . . . . . . . . . . . . . . . . . . . . . . . . . . . . . . . . . . . Exploded 5 | . 2 . 3 3 . . 3 . . 2 4 . . . . . . 2 . . 5 3 . . 1 . . . . 5 . . . 4 2 2 . . Melee 1 | . . . . . . . . 1 . 1 . . . . . . . . . . . 1 . . . . . . . . . . . . 1 1 . 1 Uniques/NPCs Destroyed . | . . . . . . . . . . . . . . . . . . . . . . . . . . . . . . . . . . . . . . . Combat | -11 -10 -10 -9 -9 -9 -8 -8 -7 -7 -7 -7 -7 -7 -6 -6 -6 -6 -6 -6 -6 -5 -5 -5 -5 -5 -5 -5 -4 -4 -4 -4 -4 -4 -3 -3 -2 -2 -2 -------- Run | Yrd Mat Min Mat Min Exi Min Mat Fac Was Fac Low Low Zio Pro Fac Was Fac Low Low Dat Pro Fac Was Fac Upp Upp Zhi Pro Fac Ext Cet Arc Hub Res Qua Res Tes Frg Hostile Shots Fired 1362 | . 82 . 150 7 . . 127 39 . 43 4 . . 4 . . 31 12 3 . 25 56 . 15 16 8 . . 87 120 59 19 12 19 121 93 77 133 Missed 544 | . 17 . 35 5 . . 30 18 . 13 1 . . . . . 28 8 1 . 14 27 . 8 11 5 . . 42 43 14 5 3 11 70 47 45 43 Hits 818 | . 65 . 115 2 . . 97 21 . 30 3 . . 4 . . 3 4 2 . 11 29 . 7 5 3 . . 45 77 45 14 9 8 51 46 32 90 Melee 3 | . . . 2 . . . . . . . . . . . . . . . . . . . . . . . . . . . . . . . . . . 1 Projectile 815 | . 65 . 113 2 . . 97 21 . 30 3 . . 4 . . 3 4 2 . 11 29 . 7 5 3 . . 45 77 45 14 9 8 51 46 32 89 AOE 8 | . . . . . . . . . . . . . . . . . . . . . . . . . . . . . . 5 . . 1 . . . . 2 Critical Strikes 42 | . 2 . 3 . . . 3 2 . 3 . . . . . . . . . . . 2 . . 1 . . . 1 3 7 . . . 4 2 2 7 Actively Blocked 1 | . . . . . . . . . . . . . . . . . . . . . . . . . 1 . . . . . . . . . . . . . Part Disruptions 2 | . . . . . . . . . . . . . . . . . . . . . . . . . . . . . . . . . . . . . 1 1 Damage Taken 16184 | . 743 . 1496 73 . . 1167 219 . 523 43 . . 76 . . 93 87 67 . 186 548 . 270 101 72 . . 1032 1607 1280 352 272 203 1163 1208 788 2515 Core 3654 | . 121 . 169 23 . . 49 105 . 266 28 . . 18 . . 38 14 13 . 69 203 . 44 22 56 . . 473 68 142 . 75 23 235 222 119 1059 Absorbed by Shields 241 | . . . . . . . . . . . . . . . . . . . . . . . . . . . . . . . . . . . . . . 241 Reduced by Siege Mode 61 | . . . . . . . . . . . . . . . . . . . . . . . . . . . . . . . 48 13 . . . . . . Redirected to Shielding 212 | . . . . . . . . . . . . . . . . . . . . . . . . 38 18 14 . . 142 . . . . . . . . . Regen/Repaired (Parts) 1981 | . . . 45 . . . 18 15 . 99 . . . . . . 54 . . . . 172 24 66 66 . . . 81 271 126 68 . 126 232 . 518 . Core Remaining (%) 66 | 100 . 51 . . . 52 91 . . . . . . 40 . . . . . . 84 . . . . . . 67 . . . . 34 . 80 . . . Volleys Fired 672 | 22 89 . 131 11 . 1 82 . . 4 1 . . . . . . 4 . . 1 3 . . 4 4 . 4 4 89 19 16 20 102 26 15 10 10 Largest 2 | 2 2 . 2 2 . 2 2 . . 1 1 . . . . . . 1 . . 1 1 . . 1 1 . 1 1 2 2 2 2 2 1 1 1 1 Hottest 136 | 100 100 . 136 136 . 136 136 . . 39 39 . . . . . . 39 . . 39 39 . . 39 47 . 47 47 92 110 70 70 113 113 120 100 50 Shots Fired 1018 | 44 148 . 256 24 . 4 164 . . 4 1 . . . . . . 4 . . 1 3 . . 4 4 . 4 4 98 35 32 21 103 25 15 10 10 Gun 639 | 44 144 . 157 . . . 122 . . . . . . . . . . . . . . . . . . . . . . 66 24 32 21 28 . . 1 . Cannon 319 | . . . 95 14 . 4 38 . . . . . . . . . . . . . . . . . . 4 . 4 4 21 11 . . 74 21 12 7 10 Launcher 60 | . 4 . 4 10 . . 4 . . 4 1 . . . . . . 4 . . 1 3 . . 4 . . . . 11 . . . 1 4 3 2 . Special . | . . . . . . . . . . . . . . . . . . . . . . . . . . . . . . . . . . . . . . . Kinetic 354 | . 24 . 43 . . . 78 . . . . . . . . . . . . . . . . . . 4 . 4 4 83 32 32 21 28 . . 1 . Thermal 600 | 44 120 . 209 14 . 4 82 . . . . . . . . . . . . . . . . . . . . . . 4 . . . 74 21 12 6 10 Explosive 60 | . 4 . 4 10 . . 4 . . 4 1 . . . . . . 4 . . 1 3 . . 4 . . . . 11 . . . 1 4 3 2 . Electromagnetic 4 | . . . . . . . . . . . . . . . . . . . . . . . . . . . . . . . 3 . . . . . 1 . Robot Hit Streak 24 | 5 6 . 15 17 . 19 24 . . . . . . . . . . . . . . . . . 2 . . . . 17 12 15 3 8 3 3 4 2 Robot Miss Streak 7 | 2 5 . 4 . . . 3 . . . . . . . . . . . . . . . . . 1 . . . . 7 2 3 . 3 1 . 1 1 Penetration Max 1 | . . . . . . . . . . . . . . . . . . . . . . . . . . . . . . 1 1 1 . 1 . . . . Secondary Targets 3 | . 1 . 1 . . . 1 . . . . . . . . . . . . . . . . . . . . . . . . . . . . . . . Max Gunslinging Chain 1 | . 1 . 1 . . . 1 . . . . . . . . . . . . . . . . . . . . . . . . . . . . . . . Capacitor 3 | . . . . . . . . . . . . . . . . . . . . . . . . . . . . . . . 3 . . . . . . . Shots Hit Robots 678 | 24 82 . 176 9 7 2 116 20 7 19 . . . . . . 7 . . . . 15 . 4 2 . . . . 63 29 23 2 30 11 11 7 12 Core Hits 432 | 11 43 . 70 22 . 1 51 9 1 17 4 . . . . . 4 5 . . 6 19 . 2 5 . . . . 77 11 13 2 18 10 16 6 9 Critical Kills 12 | . . . . . . . . . . . . . . . . . . . . . . . . . . . . . . 3 1 2 1 2 1 . 2 . Critical Parts Destroyed 8 | . . . . . . . . . . . . . . . . . . . . . . . . . . . . . . 3 2 1 1 . . . 1 . Critical Strikes 48 | . 8 . 6 . . . 2 1 . 1 . . . . . . . . . . . 1 . . . . . . . 8 4 7 2 2 2 1 3 . Burn 16 | . 8 . 6 . . . 2 . . . . . . . . . . . . . . . . . . . . . . . . . . . . . . . Meltdown 1 | . . . . . . . . . . . . . . . . . . . . . . . . . . . . . . . . . . . 1 . . . Destroy 26 | . . . . . . . . . . . . . . . . . . . . . . . . . . . . . . 8 4 7 2 2 . . 3 . Sever 4 | . . . . . . . . 1 . 1 . . . . . . . . . . . 1 . . . . . . . . . . . . . 1 . . Impale 1 | . . . . . . . . . . . . . . . . . . . . . . . . . . . . . . . . . . . 1 . . . Melee Attacks 417 | . . . 4 . 7 . 2 53 7 75 3 2 . . . . 41 2 . . 1 50 . 24 . . . . 24 . . . . 3 29 46 23 21 Impact 3 | . . . . . . . . . . . . . . . . . . . . . . . . . . . . . 3 . . . . . . . . . Slashing 348 | . . . 4 . . . 2 52 6 75 3 2 . . . . 41 2 . . 1 50 . 21 . . . . . . . . . . 24 45 20 . Piercing 50 | . . . . . . . . . . . . . . . . . . . . . . . . . . . . . 21 . . . . 1 4 . 3 21 Sneak Attacks 37 | . . . . . 6 . . 3 1 1 . . . . . . 1 . . . . 3 . 3 . . . . . . . . . 1 2 3 6 7 Combat Hostiles . | . . . . . . . . . . . . . . . . . . . . . . . . . . . . . . . . . . . . . . . Follow-up Attacks . | . . . . . . . . . . . . . . . . . . . . . . . . . . . . . . . . . . . . . . . Damage Inflicted 26896 | 313 1301 . 3014 665 . 41 2332 738 432 1420 263 . . . . . 413 405 . . 306 1902 . 195 259 . . . . 5667 1001 631 83 1343 995 1298 911 968 Guns 7457 | 311 978 . 1536 . . . 1589 . . . . . . . . . . . . . . . . . . . . . . 1337 634 631 83 358 . . . . Cannons 3702 | . . . 1179 165 . 41 490 . . . . . . . . . . . . . . . . . . . . . . 449 367 . . 674 90 123 15 109 Explosions 9704 | . 321 . 291 500 . . 245 . . 672 263 . . . . . . 405 . . 306 1136 . . 259 . . . . 3821 . . . 311 433 591 150 . Melee 5953 | . . . . . . . . 738 432 748 . . . . . . 413 . . . . 766 . 195 . . . . . . . . . . 472 584 746 859 Ramming 80 | 2 2 . 8 . . . 8 . . . . . . . . . . . . . . . . . . . . . . 60 . . . . . . . . Kinetic 5307 | . 98 . 467 . . . 1048 . . . . . . . . . . . . . . . . . . . . . . 1694 913 631 83 358 . . 15 . Thermal 6332 | 311 880 . 2248 165 . 41 1031 . . . . . . . . . . . . . . 568 . . . . . . . 92 . . . 674 90 123 . 109 Explosive 9097 | . 321 . 269 500 . . 245 . . 655 263 . . . . . . 405 . . 306 568 . . 259 . . . . 3821 . . . 311 433 591 150 . Electromagnetic 127 | . . . 22 . . . . . . 17 . . . . . . . . . . . . . . . . . . . . 88 . . . . . . . Impact . | . . . . . . . . . . . . . . . . . . . . . . . . . . . . . . . . . . . . . . . Slashing 4790 | . . . . . . . . 738 432 748 . . . . . . 413 . . . . 766 . 195 . . . . . . . . . . 335 584 579 . Piercing 1163 | . . . . . . . . . . . . . . . . . . . . . . . . . . . . . . . . . . . 137 . 167 859 Highest Corruption 17 | . . . 5 5 5 5 . . . 4 4 4 4 . . . 1 1 1 1 1 1 11 11 . . . . . . . . 1 . 13 8 11 17 Average Corruption 5 | . . . 5 5 5 5 . . . 3 4 4 4 . . . 1 1 1 1 1 1 8 7 . . . . . . . . 1 . 9 2 8 11 Corruption Purged 11 | . . . . . . . . . . . . . . . . . . . . . . . . 11 . . . . . . . . . . . . . . Corruption Blocked . | . . . . . . . . . . . . . . . . . . . . . . . . . . . . . . . . . . . . . . . Effects 274 | . . . 81 27 26 24 . . . 14 10 3 . . . . . 1 4 . 1 5 5 12 . . . . . . . . . . 14 8 17 22 Message Errors 73 | . . . 22 10 5 9 . . . 5 1 . . . . . . . 2 . . 1 1 3 . . . . . . . . . . 2 4 3 5 Matter Fused 68 | . . . 16 7 9 8 . . . 3 4 . . . . . . 1 . . . 2 . 4 . . . . . . . . . . 2 . 9 3 Heat Flow Errors 28 | . . . 8 2 2 2 . . . . 2 2 . . . . . . 1 . . . . 1 . . . . . . . . . . 1 1 . 6 Energy Discharges 24 | . . . 8 1 5 2 . . . 2 1 . . . . . . . . . . 2 . . . . . . . . . . . . 1 1 . 1 Parts Rejected 4 | . . . . . . . . . . 1 . . . . . . . . . . . . . . . . . . . . . . . . 2 1 . . Parts Fused 1 | . . . . . . . . . . . . 1 . . . . . . . . . . . . . . . . . . . . . . . . . . Data Loss (minor) 42 | . . . 11 5 4 1 . . . 3 2 . . . . . . . 1 . 1 . 1 3 . . . . . . . . . . 5 1 2 2 Data Loss (major) 8 | . . . 5 . 1 . . . . . . . . . . . . . . . . . . . . . . . . . . . . . . . 2 . Misfires 8 | . . . 4 2 . 2 . . . . . . . . . . . . . . . . . . . . . . . . . . . . . . . . Alerts 7 | . . . 4 . . . . . . . . . . . . . . . . . . . 1 1 . . . . . . . . . . . . 1 . Misdirections 7 | . . . . . . . . . . . . . . . . . . . . . . . 2 . . . . . . . . . . . . . . 5 Weapon Failures 4 | . . . 3 . . . . . . . . . . . . . . . . . . . . . . . . . . . . . . . 1 . . . Overload Shots . | . . . . . . . . . . . . . . . . . . . . . . . . . . . . . . . . . . . . . . . Overflow Damage 1484 | . 18 . 75 25 . . 17 44 175 183 . . . . . . 37 1 . . . 104 . . . . . . . 256 . . . 75 7 48 397 22 Projectiles 113 | . . . 29 . . . 1 . . . . . . . . . . . . . . . . . . . . . . 6 . . . 75 . 2 . . Explosions 560 | . 18 . 46 25 . . 16 . . 69 . . . . . . . 1 . . . 89 . . . . . . . 250 . . . . . 46 . . Melee 811 | . . . . . . . . 44 175 114 . . . . . . 37 . . . . 15 . . . . . . . . . . . . 7 . 397 22 Knockbacks 5 | . . . . . . . . . . . . . . . . . . . . . . . . . . . . . . 5 . . . . . . . . Impact 2 | . . . . . . . . . . . . . . . . . . . . . . . . . . . . . . 2 . . . . . . . . Kinetic 3 | . . . . . . . . . . . . . . . . . . . . . . . . . . . . . . 3 . . . . . . . . Secondary . | . . . . . . . . . . . . . . . . . . . . . . . . . . . . . . . . . . . . . . . Self-Inflicted Damage 323 | . 52 . 21 53 . . 7 . . 77 . . . . . . . 24 . . . . . . . . . . . 13 . . . . . 44 32 . Shots 12 | . 2 . 1 2 . . 1 . . 2 . . . . . . . 1 . . . . . . . . . . . 1 . . . . . 1 1 . Rammed 14 | 1 1 . 3 . . . 2 . . . . . . . . . . . . . . . . . . . . . . 7 . . . . . . . . Targets Rammed 15 | 1 2 . 3 . . . 2 . . . . . . . . . . . . . . . . . . . . . . 7 . . . . . . . . Kicked . | . . . . . . . . . . . . . . . . . . . . . . . . . . . . . . . . . . . . . . . Crushed 1 | . 1 . . . . . . . . . . . . . . . . . . . . . . . . . . . . . . . . . . . . . Highest Temperature 269 | 156 214 . 257 189 238 266 252 6 . 20 268 222 220 4 1 1 1 28 140 . . 8 57 269 2 . . . . 47 201 . . 234 76 217 . 236 Average Temperature 57 | 54 63 . 61 59 120 79 43 4 . 12 123 84 110 2 1 1 1 16 64 . . 4 27 85 2 . . . . 19 82 . . 64 37 48 . 94 Received Heat Transfer 2568 | . 321 . 627 12 . . 396 45 . 54 9 . . 36 . . 6 . 12 . 9 63 . 18 . 12 . . 84 322 18 27 36 9 . 27 45 380 Effects 2 | . . . . . . . . . . . . . . . . . . . . . . . . 2 . . . . . . . . . . . . . . Interference 2 | . . . . . . . . . . . . . . . . . . . . . . . . 2 . . . . . . . . . . . . . . Siege Activations 6 | . . . . . . . . . . . . . . . . . . . . . . . . . . . . . . . 2 4 . . . . . . Total Turns 117 | . . . . . . . . . . . . . . . . . . . . . . . . . . . . . . . 36 81 . . . . . . Longest Duration 34 | . . . . . . . . . . . . . . . . . . . . . . . . . . . . . . . 30 34 . . . . . . Martial Activations . | . . . . . . . . . . . . . . . . . . . . . . . . . . . . . . . . . . . . . . . Shielding Activations . | . . . . . . . . . . . . . . . . . . . . . . . . . . . . . . . . . . . . . . . Robots Disrupted . | . . . . . . . . . . . . . . . . . . . . . . . . . . . . . . . . . . . . . . . Combat Hostiles . | . . . . . . . . . . . . . . . . . . . . . . . . . . . . . . . . . . . . . . . Robots Corrupted . | . . . . . . . . . . . . . . . . . . . . . . . . . . . . . . . . . . . . . . . Combat Hostiles . | . . . . . . . . . . . . . . . . . . . . . . . . . . . . . . . . . . . . . . . Parts Fried . | . . . . . . . . . . . . . . . . . . . . . . . . . . . . . . . . . . . . . . . Impact Corruptions . | . . . . . . . . . . . . . . . . . . . . . . . . . . . . . . . . . . . . . . . Robots Melted 4 | . 1 . 1 . . . . . . . . . . . . . . . . . . . . . . . . . . . . . . 1 1 . . . Combat Hostiles 2 | . 1 . 1 . . . . . . . . . . . . . . . . . . . . . . . . . . . . . . . . . . . Parts Melted 20 | 1 6 . 4 1 . 1 3 . . . . . . . . . . . . . . . . . . . . . . . . . . 2 2 . . . Heat Transferred 13201 | 925 3111 . 5100 296 . 74 2183 . . . . . . . . . . . . . . 450 . . . . . . . 174 . . . 629 74 111 . 74 Parts Sabotaged . | . . . . . . . . . . . . . . . . . . . . . . . . . . . . . . . . . . . . . . . Parts Stolen . | . . . . . . . . . . . . . . . . . . . . . . . . . . . . . . . . . . . . . . . Parts Stripped . | . . . . . . . . . . . . . . . . . . . . . . . . . . . . . . . . . . . . . . . Power Chain Reactions . | . . . . . . . . . . . . . . . . . . . . . . . . . . . . . . . . . . . . . . . Alert | -11 -10 -10 -9 -9 -9 -8 -8 -7 -7 -7 -7 -7 -7 -6 -6 -6 -6 -6 -6 -6 -5 -5 -5 -5 -5 -5 -5 -4 -4 -4 -4 -4 -4 -3 -3 -2 -2 -2 ------- Run | Yrd Mat Min Mat Min Exi Min Mat Fac Was Fac Low Low Zio Pro Fac Was Fac Low Low Dat Pro Fac Was Fac Upp Upp Zhi Pro Fac Ext Cet Arc Hub Res Qua Res Tes Frg Maximum Alert Level 4 | . . . 2 1 . . 1 . . 1 . . . . . . . . . . . 2 . . . . . . 2 4 3 1 . . 1 1 1 1 Low Security (%) 69 | 100 100 100 42 74 . 100 66 100 100 82 . . . . 100 100 100 . . . . 12 100 100 . . . . . 43 . 69 100 100 96 87 65 92 Level 1 21 | . . . 54 25 . . 33 . . 17 . . . . . . . . . . . 34 . . . . . . 96 7 . 30 . . 3 12 34 7 Level 2 5 | . . . 2 . . . . . . . . . . . . . . . . . . 53 . . . . . . 3 20 92 . . . . . . . Level 3 2 | . . . . . . . . . . . . . . . . . . . . . . . . . . . . . . 24 7 . . . . . . . Level 4 . | . . . . . . . . . . . . . . . . . . . . . . . . . . . . . . 4 . . . . . . . . Level 5 . | . . . . . . . . . . . . . . . . . . . . . . . . . . . . . . . . . . . . . . . High Security . | . . . . . . . . . . . . . . . . . . . . . . . . . . . . . . . . . . . . . . . Max Security . | . . . . . . . . . . . . . . . . . . . . . . . . . . . . . . . . . . . . . . . Peak Influence 1114 | 15 146 29 407 282 . 76 337 147 9 270 . . . . 8 . 85 . . . . 577 151 91 . . . . 450 1114 713 223 33 102 200 396 261 212 Initial 620 | . . 29 . 158 . . . 147 9 . . . . . . . . . . . . 97 151 84 . . . . 450 179 620 199 33 3 . 97 201 146 Average 162 | 2 67 1 203 136 . 5 180 75 1 132 . . . . . . 12 . . . . 375 137 47 . . . . 314 413 605 173 6 36 100 84 101 108 Influence Increases 12560 | 55 611 . 1327 384 . 108 991 314 . 753 120 . . 103 8 . 376 140 . . 185 951 . 296 65 60 . 15 896 1833 207 98 74 409 426 672 522 561 Destroy 0b10 Robot/C 4056 | . 340 . 700 220 . 80 580 80 . 220 80 . . 80 . . . 100 . . 100 140 . . 40 . . . . 816 128 64 16 64 80 80 32 16 Destroy 0b10 Robot/NC 577 | 55 55 . 85 10 . 5 30 15 . 20 . . . . . . 20 . . . . 20 . 10 . . . . . 104 8 4 . 44 12 28 24 28 Destroy Leader 802 | . 90 . 212 40 . 10 138 26 . 54 10 . . 10 . . 8 10 . . 10 36 . 2 10 . . . . 70 . . 8 18 18 14 8 . Allied During Kill 540 | . . . . . . 13 . . . . . . . 13 . . . . . . . . . . . . . . . 449 61 4 . . . . . . Trap Triggered on 0b10 82 | . . . . . . . . . . . . . . . . . . . . . . . . 50 . . . . . . . . . . . . . 32 Successful Hack 639 | . 3 . 19 . . . 34 49 . 65 . . . . 8 . 66 . . . . 64 . 16 . . . . 40 16 . . . 57 44 58 26 74 Select Force Hacks 60 | . 30 . 30 . . . . . . . . . . . . . . . . . . . . . . . . . . . . . . . . . . . Disable Machine 615 | . . . 90 90 . . 60 . . 45 . . . . . . . . . . . 30 . . . . . . 12 48 . 12 12 24 60 12 108 12 Destroy Structure 1499 | . 18 . 56 24 . . 44 24 . 79 . . . . . . 27 . . . . 106 . 38 . . . . 58 318 10 14 26 130 152 216 120 39 Advance Influence 450 | . . . . . . . . . . . . . . . . . . . . . . . . . . . . . 450 . . . . . . . . . Partial Spotted 693 | . . . . . . . . 15 . 150 . . . . . . 75 . . . . 105 . 60 . . . . 24 . . . . 72 36 108 12 36 Lose Combat Pursuer 2547 | . 75 . 135 . . . 105 105 . 120 30 . . . . . 180 30 . . 75 450 . 120 15 60 . 15 312 12 . . 12 . 24 156 192 324 Influence Decreases 12358 | 55 535 76 920 731 60 108 665 613 27 483 286 104 . 103 8 . 291 172 53 . 30 672 313 379 98 65 . 15 530 1091 816 500 163 417 252 487 620 620 Entered New Map 2506 | . . 47 . 249 60 . . 179 18 . 100 21 . . . . . 32 11 . . 58 283 37 15 2 . . . 187 488 300 64 5 . 77 158 115 Time Decay 7774 | 55 495 29 720 482 . 52 655 322 9 452 186 83 . 103 8 . 271 140 42 . 30 404 30 302 73 63 . 15 310 558 198 180 79 392 202 350 262 222 Search Patrol Dispatched 150 | . . . . . . . . . . . . . . . . . . . . . . 150 . . . . . . . . . . . . . . . . Lost Part 631 | . 40 . 50 . . . 10 . . 21 . . . . . . 10 . . . . 40 . 30 10 . . . 30 20 30 . 10 20 50 60 50 150 Lost Ally 452 | . . . . . . 56 . . . 10 . . . . . . 10 . . . . 20 . 10 . . . . 40 176 100 20 10 . . . . . Purge Threat 845 | . . . 150 . . . . 112 . . . . . . . . . . . . . . . . . . . . 150 150 . . . . . . 150 133 Squads Dispatched 96 | . 4 . 5 . . . 2 5 . 9 . . . . 1 . 10 . . . . 10 . 6 . . . . 8 4 . . 3 13 4 7 4 1 Investigation 43 | . 2 . 2 . . . 1 2 . 3 . . . . 1 . 7 . . . . 5 . 3 . . . . 5 . . . 1 7 . 2 2 . Extermination 22 | . . . . . . . . 1 . 4 . . . . . . 2 . . . . 3 . 2 . . . . 2 . . . . . 2 3 2 1 Reinforcement 28 | . 2 . 3 . . . 1 2 . 2 . . . . . . 1 . . . . 2 . 1 . . . . 1 1 . . 2 6 2 2 . . Assault 3 | . . . . . . . . . . . . . . . . . . . . . . . . . . . . . . 3 . . . . . . . . Garrison . | . . . . . . . . . . . . . . . . . . . . . . . . . . . . . . . . . . . . . . . Intercept . | . . . . . . . . . . . . . . . . . . . . . . . . . . . . . . . . . . . . . . . Searches Triggered 1 | . . . . . . . . . . . . . . . . . . . . . . 1 . . . . . . . . . . . . . . . . Data Miner Redirects 4 | . . . . . . . . . . . . . . . . . . . . . . 2 . . . . . . . 1 . . . . . . 1 . Construction Impeded 2 | . . . . . . . . . . . . . . . . . . . . . . . . . . . . . . . . . . 2 . . . . Haulers Reinforced 5 | . . . . . . . . 1 . . . . . . . . . . . . . 1 . . . . . . . . . . . 3 . . . . Active Scanning Responses . | . . . . . . . . . . . . . . . . . . . . . . . . . . . . . . . . . . . . . . . Cargo Convoy Interrupts . | . . . . . . . . . . . . . . . . . . . . . . . . . . . . . . . . . . . . . . . Stealth | -11 -10 -10 -9 -9 -9 -8 -8 -7 -7 -7 -7 -7 -7 -6 -6 -6 -6 -6 -6 -6 -5 -5 -5 -5 -5 -5 -5 -4 -4 -4 -4 -4 -4 -3 -3 -2 -2 -2 --------- Run | Yrd Mat Min Mat Min Exi Min Mat Fac Was Fac Low Low Zio Pro Fac Was Fac Low Low Dat Pro Fac Was Fac Upp Upp Zhi Pro Fac Ext Cet Arc Hub Res Qua Res Tes Frg Distress Signals 39 | . 2 . 1 1 . . 5 1 . . . . . . . . . . . . . 2 . 2 . . . 2 4 4 . . 1 7 1 2 1 3 Communications Jammed . | . . . . . . . . . . . . . . . . . . . . . . . . . . . . . . . . . . . . . . . Distress Signals . | . . . . . . . . . . . . . . . . . . . . . . . . . . . . . . . . . . . . . . . Times Spotted 594 | . 31 . 55 10 . . 38 18 . 25 8 . . 7 . 5 20 9 1 . 15 44 6 16 3 3 . 3 34 52 10 5 12 16 23 38 33 54 Peak Tracking Total 20 | . 5 . 5 3 . . 7 4 . 5 6 . . 4 . 6 6 4 1 . 9 9 6 5 2 4 . 3 11 7 5 1 9 5 10 13 19 20 Tactical Retreats 80 | . 4 . 3 . . . 6 6 . 4 1 . . . . . 7 1 . . 2 10 . 3 1 1 . 1 9 1 . . 1 . 1 7 3 8 Traps | -11 -10 -10 -9 -9 -9 -8 -8 -7 -7 -7 -7 -7 -7 -6 -6 -6 -6 -6 -6 -6 -5 -5 -5 -5 -5 -5 -5 -4 -4 -4 -4 -4 -4 -3 -3 -2 -2 -2 ------- Run | Yrd Mat Min Mat Min Exi Min Mat Fac Was Fac Low Low Zio Pro Fac Was Fac Low Low Dat Pro Fac Was Fac Upp Upp Zhi Pro Fac Ext Cet Arc Hub Res Qua Res Tes Frg Traps Triggered 27 | . . . 1 . . . 1 2 . . . . . . 1 . 1 . . . . 2 . 2 . . . . 5 1 . . . 3 2 2 3 1 Indirectly . | . . . . . . . . . . . . . . . . . . . . . . . . . . . . . . . . . . . . . . . Trap Hack Attempts 21 | . . . . . . . . 1 . . . . . . . . . . . . . . . 18 . . . . . . . . . . 2 . . . Triggered . | . . . . . . . . . . . . . . . . . . . . . . . . . . . . . . . . . . . . . . . Disarmed 1 | . . . . . . . . 1 . . . . . . . . . . . . . . . . . . . . . . . . . . . . . . Reprogrammed 25 | . . . . . . . . . . . . . . . . . . . . . . . . 6 . . . . . . . . . . 1 6 . 12 Reused 9 | . . . . . . . . . . . . . . . . . . . . . . . . 5 . . . . . . . . . . . . . 4 Traps Extracted . | . . . . . . . . . . . . . . . . . . . . . . . . . . . . . . . . . . . . . . . Installed . | . . . . . . . . . . . . . . . . . . . . . . . . . . . . . . . . . . . . . . . Triggered 9 | . . . . . . . . . . . . . . . . . . . . . . . . 5 . . . . . . . . . . . . . 4 Machines | -11 -10 -10 -9 -9 -9 -8 -8 -7 -7 -7 -7 -7 -7 -6 -6 -6 -6 -6 -6 -6 -5 -5 -5 -5 -5 -5 -5 -4 -4 -4 -4 -4 -4 -3 -3 -2 -2 -2 ---------- Run | Yrd Mat Min Mat Min Exi Min Mat Fac Was Fac Low Low Zio Pro Fac Was Fac Low Low Dat Pro Fac Was Fac Upp Upp Zhi Pro Fac Ext Cet Arc Hub Res Qua Res Tes Frg Machines Disabled 49 | . . . 6 6 . . 4 . . 3 . . . . . . . . . . . 2 . . . . . 1 1 4 . 1 1 2 5 1 11 1 Max in Single Turn 3 | . . . 3 3 . . 1 . . 1 . . . . . . . . . . . 2 . . . . . 1 . 1 . 1 1 1 1 1 2 1 Garrison Access 12 | . . . . . . . . 1 . 2 . . . . 1 . 2 . . . . 2 . . . . . . 1 . . . . 2 . 1 . . Network Hub 1 | . . . . . . . . . . . . . . . . . . . . . . . . . . . . . . . . . 1 . . . . . Machines Repaired . | . . . . . . . . . . . . . . . . . . . . . . . . . . . . . . . . . . . . . . . Machines Dismantled . | . . . . . . . . . . . . . . . . . . . . . . . . . . . . . . . . . . . . . . . Machines Sabotaged . | . . . . . . . . . . . . . . . . . . . . . . . . . . . . . . . . . . . . . . . Overloaded Fab Kills . | . . . . . . . . . . . . . . . . . . . . . . . . . . . . . . . . . . . . . . . Hacking | -11 -10 -10 -9 -9 -9 -8 -8 -7 -7 -7 -7 -7 -7 -6 -6 -6 -6 -6 -6 -6 -5 -5 -5 -5 -5 -5 -5 -4 -4 -4 -4 -4 -4 -3 -3 -2 -2 -2 --------- Run | Yrd Mat Min Mat Min Exi Min Mat Fac Was Fac Low Low Zio Pro Fac Was Fac Low Low Dat Pro Fac Was Fac Upp Upp Zhi Pro Fac Ext Cet Arc Hub Res Qua Res Tes Frg Machines Accessed 213 | . 8 . 10 . 2 . 10 14 . 27 1 . . . 4 . 23 . . 4 . 19 . 14 . . 5 1 15 7 . 1 1 13 8 9 8 9 Terminals 104 | . 6 . 7 . . . 7 7 . 13 . . . . 1 . 11 . . . . 7 . 7 . . . . 7 6 . . 1 1 6 5 5 7 Fabricators 24 | . . . . . . . . 2 . 3 . . . . 1 . 4 . . . . 4 . 2 . . . . 2 . . . . 3 . 1 2 . Repair Stations 17 | . . . 1 . . . 1 2 . 2 . . . . . . 2 . . . . 3 . 1 . . . . 2 . . . . . 1 . 1 1 Recycling Units 23 | . 2 . 1 . . . . 2 . 4 . . . . 1 . 1 . . . . 2 . 2 . . . . 3 1 . . . 3 . 1 . . Scanalyzers 19 | . . . 1 . . . 2 . . 3 . . . . . . 3 . . . . 1 . 2 . . . . . . . . . 4 1 1 . 1 Garrison Access 12 | . . . . . . . . 1 . 2 . . . . 1 . 2 . . . . 2 . . . . . . 1 . . . . 2 . 1 . . Total Hacks 749 | . 22 . 46 . 5 . 39 45 . 90 1 . . . 10 . 86 . . 26 . 55 . 40 . . 17 1 37 25 . 2 10 54 22 40 35 41 Successful 493 | . 13 . 31 . 5 . 29 27 . 55 1 . . . 7 . 54 . . 26 . 42 . 29 . . 17 1 25 19 . 2 3 33 9 23 20 22 Failed 252 | . 9 . 14 . . . 10 17 . 35 . . . . 3 . 32 . . . . 12 . 11 . . . . 12 5 . . 7 21 13 17 15 19 Catastrophic 40 | . . . 1 . . . 2 3 . 9 . . . . 1 . 4 . . . . 1 . . . . . . 5 . . . 2 2 4 3 2 1 Database Lockouts 4 | . . . 1 . . . . 1 . . . . . . . . . . . . . 1 . . . . . . . 1 . . . . . . . . Manual 346 | . 17 . 20 . 1 . 15 27 . 50 . . . . 7 . 36 . . . . 26 . 20 . . . . 18 12 1 . 10 12 12 11 17 34 Terminals 400 | . 17 . 31 . . . 19 26 . 49 . . . . 5 . 47 . . . . 19 . 21 . . . . 18 24 . . 10 5 19 29 24 37 Fabricators 91 | . . . . . . . . 5 . 13 . . . . 1 . 16 . . . . 19 . 10 . . . . 6 . . . . 15 . 2 4 . Repair Stations 52 | . . . 5 . . . 2 6 . 6 . . . . . . 5 . . . . 10 . 2 . . . . 5 . . . . . 2 . 7 2 Recycling Units 54 | . 5 . 2 . . . . 6 . 11 . . . . 3 . 1 . . . . 4 . 2 . . . . 7 1 . . . 8 . 4 . . Scanalyzers 82 | . . . 8 . . . 18 . . 8 . . . . . . 14 . . . . 1 . 5 . . . . . . . . . 22 1 3 . 2 Garrison Access 18 | . . . . . . . . 2 . 3 . . . . 1 . 3 . . . . 2 . . . . . . 1 . . . . 4 . 2 . . Terminal Hacks 186 | . 2 . 10 . 5 . 2 10 . 16 1 . . . 1 . 19 . . 26 . 7 . 7 . . 17 1 5 13 . 2 2 2 4 12 9 13 Record 19 | . . . . . 4 . . . . . . . . . . . . . . 5 . . . . . . 6 1 . . . 2 . . 1 . . . Part Schematic 26 | . . . . . . . . 2 . 1 . . . . . . 2 . . 12 . 3 . 1 . . 3 . . 1 . . . . . 1 . . Robot Schematic 7 | . . . . . . . . . . . . . . . . . . . . 6 . . . 1 . . . . . . . . . . . . . . Robot Analysis 13 | . 1 . 1 . . . . . . 2 . . . . . . . . . . . . . . . . 4 . 1 1 . . . . . . . 3 Prototype ID Bank 16 | . . . 2 . . . . 1 . 1 . . . . . . 3 . . 3 . . . . . . 4 . . 1 . . . . . . . 1 Open Door 3 | . . . . . . . . . . . 1 . . . . . . . . . . . . . . . . . 1 1 . . . . . . . . Branch Access Points 8 | . . . 1 . . . 1 1 . 1 . . . . . . 1 . . . . . . 1 . . . . . . . . . . . 1 1 . Machine Index 5 | . . . . . . . . . . . . . . . . . 1 . . . . 1 . . . . . . 1 . . . . . 1 . . 1 Terminal Index 13 | . . . . . . . . 1 . 1 . . . . 1 . 1 . . . . 1 . 1 . . . . . 1 . . 1 1 1 1 1 1 Fabricator Index 2 | . . . . . . . . . . . . . . . . . . . . . . . . . . . . . . . . . . . . 1 . 1 Recycling Unit Index 2 | . . . 1 . . . . . . . . . . . . . . . . . . . . . . . . . . . . . . . . . . 1 Scanalyzer Index 4 | . . . . . . . . . . 1 . . . . . . 1 . . . . . . 1 . . . . . . . . . 1 . . . . Garrison Index 2 | . . . . . . . . . . 1 . . . . . . . . . . . . . . . . . . . . . . . . . . 1 . Alert Level 1 | . . . . . . . . . . . . . . . . . 1 . . . . . . . . . . . . . . . . . . . . . Unreport Threat 6 | . . . 1 . . . . 1 . . . . . . . . . . . . . . . . . . . . 1 1 . . . . . . 1 1 Locate Traps 11 | . 1 . 2 . . . 1 1 . 2 . . . . . . 1 . . . . . . . . . . . . 1 . . . . . 1 1 . Reprogram Traps 3 | . . . . . . . . . . . . . . . . . . . . . . . . . . . . . . . . . . . . 1 . 2 Security Status 1 | . . . . . . . . . . . . . . . . . . . . . . . . . . . . . . 1 . . . . . . . . Transport Status 1 | . . . . . . . . 1 . . . . . . . . . . . . . . . . . . . . . . . . . . . . . . Recall Extermination 6 | . . . . . . . . . . 1 . . . . . . 1 . . . . . . . . . . . . . . . . . . 2 2 . Hauler Manifests 9 | . . . 1 . . . . 1 . 1 . . . . . . 2 . . . . 1 . 1 . . . . . 1 . . . . . 1 . . Registered Components 3 | . . . . . . . . . . 1 . . . . . . . . . . . . . . . . . . . 1 . . . . 1 . . . Registered Prototypes 4 | . . . . . . . . . . . . . . . . . 1 . . . . . . . . . . . . 1 . . . . . 1 1 . Zone Layout 19 | . . . 1 . . . . 1 . 3 . . . . . . 4 . . . . 1 . 1 . . . . 1 2 . . 1 . . 2 . 2 Proto ID Catalog 1 | . . . . . 1 . . . . . . . . . . . . . . . . . . . . . . . . . . . . . . . . . Protovariant Controls 1 | . . . . . . . . . . . . . . . . . . . . . . . . . . . . . . . . . . . . . 1 . Fabricator Hacks 58 | . . . . . . . . 3 . 9 . . . . 1 . 9 . . . . 13 . 7 . . . . 5 . . . . 7 . 1 3 . Network Status 7 | . . . . . . . . 1 . 1 . . . . 1 . 1 . . . . 1 . . . . . . 1 . . . . 1 . . . . Load Schematic 35 | . . . . . . . . 2 . 5 . . . . . . 6 . . . . 8 . 4 . . . . 3 . . . . 4 . 1 2 . Build 16 | . . . . . . . . . . 3 . . . . . . 2 . . . . 4 . 3 . . . . 1 . . . . 2 . . 1 . Repair Station Hacks 38 | . . . 3 . . . 2 2 . 6 . . . . . . 4 . . . . 8 . 2 . . . . 5 . . . . . 2 . 3 1 Scan Component 19 | . . . 2 . . . 1 1 . 3 . . . . . . 2 . . . . 5 . 1 . . . . 2 . . . . . 1 . 1 . Repair 16 | . . . 1 . . . 1 1 . 3 . . . . . . 2 . . . . 3 . 1 . . . . 2 . . . . . 1 . 1 . Refit 3 | . . . . . . . . . . . . . . . . . . . . . . . . . . . . . 1 . . . . . . . 1 1 Recycling Unit Hacks 27 | . 2 . 1 . . . . 3 . 4 . . . . 1 . 1 . . . . 2 . 2 . . . . 3 1 . . . 5 . 2 . . Retrieve Matter 1 | . . . . . . . . 1 . . . . . . . . . . . . . . . . . . . . . . . . . . . . . . Retrieve Components 26 | . 2 . 1 . . . . 2 . 4 . . . . 1 . 1 . . . . 2 . 2 . . . . 3 1 . . . 5 . 2 . . Scanalyzer 57 | . . . 8 . . . 16 . . 5 . . . . . . 8 . . . . 1 . 5 . . . . . . . . . 11 1 2 . . Insert Component 34 | . . . 4 . . . 8 . . 3 . . . . . . 6 . . . . 1 . 2 . . . . . . . . . 8 1 1 . . Analyze 23 | . . . 4 . . . 8 . . 2 . . . . . . 2 . . . . . . 3 . . . . . . . . . 3 . 1 . . Garrison Access Hacks 12 | . . . . . . . . 1 . 2 . . . . 1 . 2 . . . . 2 . . . . . . 1 . . . . 2 . 1 . . Seal Access 12 | . . . . . . . . 1 . 2 . . . . 1 . 2 . . . . 2 . . . . . . 1 . . . . 2 . 1 . . Unauthorized Hacks 114 | . 9 . 9 . . . 9 8 . 13 . . . . 3 . 11 . . . . 9 . 6 . . . . 6 5 . . 1 6 2 4 5 8 Terminals 76 | . 8 . 8 . . . 9 4 . 7 . . . . 1 . 7 . . . . 3 . 4 . . . . 3 5 . . 1 . 2 3 4 7 Track 28 | . . . 1 . . . 1 2 . 3 . . . . . . 2 . . . . 1 . 1 . . . . 2 4 . . . . 2 1 3 5 Assimilate 11 | . 1 . . . . . . . . 2 . . . . . . 2 . . . . 2 . 2 . . . . . . . . . . . 1 . 1 Botnet 18 | . 1 . 2 . . . 2 2 . 2 . . . . 1 . 1 . . . . . . 1 . . . . 1 1 . . 1 . . 1 1 1 Operators 3 | . 1 . . . . . 2 . . . . . . . . . . . . . . . . . . . . . . . . . . . . . . . Skim 16 | . 5 . 5 . . . 4 . . . . . . . . . 2 . . . . . . . . . . . . . . . . . . . . . Fabricators 21 | . . . . . . . . 2 . 3 . . . . . . 4 . . . . 4 . 2 . . . . 1 . . . . 3 . 1 1 . Prioritize 4 | . . . . . . . . . . 1 . . . . . . . . . . . 1 . 1 . . . . . . . . . 1 . . . . Recompile 17 | . . . . . . . . 2 . 2 . . . . . . 4 . . . . 3 . 1 . . . . 1 . . . . 2 . 1 1 . Repair Stations 1 | . . . . . . . . 1 . . . . . . . . . . . . . . . . . . . . . . . . . . . . . . Mechanics 1 | . . . . . . . . 1 . . . . . . . . . . . . . . . . . . . . . . . . . . . . . . Recycling Units 15 | . 1 . 1 . . . . 1 . 3 . . . . 2 . . . . . . 2 . . . . . . 2 . . . . 3 . . . . Reject 5 | . . . . . . . . . . 1 . . . . 1 . . . . . . 1 . . . . . . 1 . . . . 1 . . . . Recyclers 1 | . . . . . . . . . . . . . . . . . . . . . . . . . . . . . . . . . . 1 . . . . Mask 7 | . . . . . . . . 1 . 2 . . . . 1 . . . . . . 1 . . . . . . 1 . . . . 1 . . . . Tunnel 2 | . 1 . 1 . . . . . . . . . . . . . . . . . . . . . . . . . . . . . . . . . . . Scanalyzers 1 | . . . . . . . . . . . . . . . . . . . . . . . . . . . . . . . . . . . . . . 1 Researchers 1 | . . . . . . . . . . . . . . . . . . . . . . . . . . . . . . . . . . . . . . 1 Garrison Access . | . . . . . . . . . . . . . . . . . . . . . . . . . . . . . . . . . . . . . . . Data Cores Recovered 2 | . . . . . . . . . . . . . . . . . . . . . . . . 1 . . . . . . . . . . 1 . . . Used 1 | . . . . . . . . . . . . . . . . . . . . . . . . . . . . . . . . . . . 1 . . . Hacking Detections 151 | . 8 . 10 . . . 9 11 . 21 . . . . 2 . 15 . . . . 15 . 13 . . . . 11 4 . . 1 7 5 8 4 7 Full Trace Events 18 | . 1 . 1 . . . . . . 1 . . . . 1 . 3 . . . . 2 . 2 . . . . 2 . . . 1 3 . 1 . . Feedback Events 1 | . . . . . . . . . . . . . . . . . . . . . . 1 . . . . . . . . . . . . . . . . Hackware Fried 1 | . . . . . . . . . . . . . . . . . . . . . . 1 . . . . . . . . . . . . . . . . Feedback Blocked 1 | . . . . . . . . . . . . . . . . . 1 . . . . . . . . . . . . . . . . . . . . . Robot Schematics Acquired 7 | . . . . . . . . . . . . . . . . . . . . 6 . . . 1 . . . . . . . . . . . . . . Robots Built . | . . . . . . . . . . . . . . . . . . . . . . . . . . . . . . . . . . . . . . . Authchips . | . . . . . . . . . . . . . . . . . . . . . . . . . . . . . . . . . . . . . . . Time . | . . . . . . . . . . . . . . . . . . . . . . . . . . . . . . . . . . . . . . . Total Robot Build Rating . | . . . . . . . . . . . . . . . . . . . . . . . . . . . . . . . . . . . . . . . Part Schematics Acquired 46 | . . . 4 . . . 8 2 . 3 . . . . . . 4 . . 12 . 3 . 2 . . 3 . . 1 . . . 2 . 2 . . Parts Built 17 | . . . . . . . . . . 3 . . . . . . 2 . . . . 5 . 3 . . . . 1 . . . . 2 . . 1 . Authchips 14 | . . . . . . . . . . 3 . . . . . . 2 . . . . 4 . 2 . . . . 1 . . . . 1 . . 1 . Time 777 | . . . . . . . . . . 161 . . . . . . 100 . . . . 209 . 106 . . . . 62 . . . . 77 . . 62 . Total Part Build Rating 95 | . . . . . . . . . . 14 . . . . . . 11 . . . . 25 . 17 . . . . 7 . . . . 14 . . 7 . Parts Repaired 16 | . . . 1 . . . 1 1 . 3 . . . . . . 2 . . . . 3 . 1 . . . . 2 . . . . . 1 . 1 . Time 645 | . . . 32 . . . 13 26 . 158 . . . . . . 79 . . . . 149 . 22 . . . . 58 . . . . . 54 . 54 . Parts Recycled . | . . . . . . . . . . . . . . . . . . . . . . . . . . . . . . . . . . . . . . . Recycled Matter . | . . . . . . . . . . . . . . . . . . . . . . . . . . . . . . . . . . . . . . . Retrieved Matter . | . . . . . . . . . . . . . . . . . . . . . . . . . . . . . . . . . . . . . . . Retrieved Components 95 | . 11 . 10 . . . . 4 . 3 . . . . 2 . . . . . . 3 . 4 . . . . 2 10 . . . 31 . 15 . . Parts Scanalyzed 22 | . . . 4 . . . 8 . . 2 . . . . . . 2 . . . . . . 1 . . . . . . . . . 4 . 1 . . Part Schematics Acquired 20 | . . . 4 . . . 8 . . 2 . . . . . . 2 . . . . . . 1 . . . . . . . . . 2 . 1 . . Parts Damaged 2 | . . . 1 . . . . . . . . . . . . . . . . . . . . . . . . . . . . . . 1 . . . . Bothacking | -11 -10 -10 -9 -9 -9 -8 -8 -7 -7 -7 -7 -7 -7 -6 -6 -6 -6 -6 -6 -6 -5 -5 -5 -5 -5 -5 -5 -4 -4 -4 -4 -4 -4 -3 -3 -2 -2 -2 ------------ Run | Yrd Mat Min Mat Min Exi Min Mat Fac Was Fac Low Low Zio Pro Fac Was Fac Low Low Dat Pro Fac Was Fac Upp Upp Zhi Pro Fac Ext Cet Arc Hub Res Qua Res Tes Frg Used RIF Installer . | . . . . . . . . . . . . . . . . . . . . . . . . . . . . . . . . . . . . . . . Robots Hacked 4 | . . . . . . . . 1 1 . . . . . . . . . . . . . . 2 . . . . . . . . . . . . . . Non-combat 3 | . . . . . . . . 1 . . . . . . . . . . . . . . . 2 . . . . . . . . . . . . . . Combat 1 | . . . . . . . . . 1 . . . . . . . . . . . . . . . . . . . . . . . . . . . . . Robot Hacks Applied 4 | . . . . . . . . 1 1 . . . . . . . . . . . . . . 2 . . . . . . . . . . . . . . parse_system 4 | . . . . . . . . 1 1 . . . . . . . . . . . . . . 2 . . . . . . . . . . . . . . Relay Couplers Released . | . . . . . . . . . . . . . . . . . . . . . . . . . . . . . . . . . . . . . . . Fabnet Peak Effective % . | . . . . . . . . . . . . . . . . . . . . . . . . . . . . . . . . . . . . . . . Robots Rewired 17 | . . . . . 3 . . . . . . . . . . . . . . . . . . . . . . . . 14 . . . . . . . . Allies Hacked . | . . . . . . . . . . . . . . . . . . . . . . . . . . . . . . . . . . . . . . . Hacks Repelled . | . . . . . . . . . . . . . . . . . . . . . . . . . . . . . . . . . . . . . . . Allies | -11 -10 -10 -9 -9 -9 -8 -8 -7 -7 -7 -7 -7 -7 -6 -6 -6 -6 -6 -6 -6 -5 -5 -5 -5 -5 -5 -5 -4 -4 -4 -4 -4 -4 -3 -3 -2 -2 -2 -------- Run | Yrd Mat Min Mat Min Exi Min Mat Fac Was Fac Low Low Zio Pro Fac Was Fac Low Low Dat Pro Fac Was Fac Upp Upp Zhi Pro Fac Ext Cet Arc Hub Res Qua Res Tes Frg Total Allies 34 | . . . . . 3 . . . . 1 . . 4 . . . 2 . . . . 2 . 2 . . . . 2 17 . . . . . . . 1 Largest Group 9 | . . . . . 3 3 . . . 1 . . 4 4 3 . 1 . . . . 2 . 1 . . . . 1 9 6 1 . . . . . . Highest-Rated Group 402 | . . . . . 37 37 . . . 26 . . 104 104 90 . 26 . . . . 52 . 26 . . . . 96 402 250 46 . . . . . . Highest-Rated Ally 96 | . . . . . 21 21 . . . 26 . . 31 31 31 . 26 . . . . 26 . 26 . . . . 96 51 46 46 . . . . . . Total Orders 26 | . . . . . . . . . . . . . . . 1 . . . . . . . . 1 . . . . . 21 . . 3 . . . . . STAY 3 | . . . . . . . . . . . . . . . . . . . . . . . . 1 . . . . . 1 . . 1 . . . . . FOLLOW 2 | . . . . . . . . . . . . . . . . . . . . . . . . . . . . . . 2 . . . . . . . . EXPLORE 7 | . . . . . . . . . . . . . . . 1 . . . . . . . . . . . . . . 4 . . 2 . . . . . RETURN 14 | . . . . . . . . . . . . . . . . . . . . . . . . . . . . . . 14 . . . . . . . . Ally Attacks 391 | . . . . . . 24 . . . . . . . 23 5 . . . . . . . . . . . . . 10 263 61 5 . . . . . . Total Damage 8220 | . . . . . . 241 . . . . . . . 409 76 . . . . . . . . . . . . . 293 5808 1260 133 . . . . . . Kills 55 | . . . . . . 4 . . . . . . . 4 . . . . . . . . . . . . . . . 39 8 . . . . . . . Allies Corrupted 2 | . . . . . . . . . . . . . . . . . . . . . . . . . . . . . 2 . . . . . . . . . Allies Melted . | . . . . . . . . . . . . . . . . . . . . . . . . . . . . . . . . . . . . . . . Intel | -11 -10 -10 -9 -9 -9 -8 -8 -7 -7 -7 -7 -7 -7 -6 -6 -6 -6 -6 -6 -6 -5 -5 -5 -5 -5 -5 -5 -4 -4 -4 -4 -4 -4 -3 -3 -2 -2 -2 ------- Run | Yrd Mat Min Mat Min Exi Min Mat Fac Was Fac Low Low Zio Pro Fac Was Fac Low Low Dat Pro Fac Was Fac Upp Upp Zhi Pro Fac Ext Cet Arc Hub Res Qua Res Tes Frg Active Infowar (turns) 27527 | 336 2027 877 4846 1258 1169 1108 2500 750 103 1123 498 201 421 308 82 51 782 285 387 21 71 962 73 677 379 279 47 120 647 122 411 360 347 1488 493 811 629 478 Optics 5129 | . . . . . . . . . . . . . . . . . . . . . . . . . . . . . . 122 411 360 347 1488 489 811 623 478 Sensors 8396 | . . . . . . . . . . . . . . . . . 690 282 346 . . 879 73 659 379 279 41 117 644 . . 156 336 1315 493 809 556 342 Terrain 2132 | . . . 1104 . . . . . . . . . . . . . . . . . . . . . . . . . . . . . . 412 492 124 . . Structural 11545 | . . . . . . . 2500 719 103 1119 498 198 421 1 17 50 740 285 387 21 71 961 73 666 168 279 47 120 646 . . . . 300 . 186 552 417 Seismic 17044 | 336 2027 877 4706 1258 1169 1108 2344 737 103 1121 498 201 34 307 82 51 85 . . . . . . . . . . . . . . . . . . . . . T.N.C. 878 | . . . . . . . . . . . . . . . . . . . . . . . . . . . . . . . . . . 878 . . . . Robot Analysis Total 13 | . 1 . 1 . . . . . . 2 . . . . . . . . . . . . . . . . 4 . 1 1 . . . . . . . 3 Derelict Logs Recovered 17 | . . . . 1 . . . . . . 1 2 2 . . . . 2 2 . 1 . . . 2 2 . 2 . . . . . . . . . . Drone Launches 29 | . . . . . . . . . . . . . . . 2 . . . . . . . . . . . . . . 24 . . 3 . . . . . Drone Recoveries 23 | . . . . . . . . . . . . . . . . . . . . . . . . . . . . . . 23 . . . . . . . . Exploration | -11 -10 -10 -9 -9 -9 -8 -8 -7 -7 -7 -7 -7 -7 -6 -6 -6 -6 -6 -6 -6 -5 -5 -5 -5 -5 -5 -5 -4 -4 -4 -4 -4 -4 -3 -3 -2 -2 -2 ------------- Run | Yrd Mat Min Mat Min Exi Min Mat Fac Was Fac Low Low Zio Pro Fac Was Fac Low Low Dat Pro Fac Was Fac Upp Upp Zhi Pro Fac Ext Cet Arc Hub Res Qua Res Tes Frg Turns Passed 30479 | 389 2465 877 4885 1258 1169 1108 2500 750 103 1123 498 201 421 308 82 51 782 285 387 21 71 962 73 677 379 279 47 120 691 2500 411 360 347 1488 493 811 629 478 Spaces Moved 34297 | 189 892 361 1609 475 479 450 799 1682 295 2711 905 562 911 295 286 138 2133 810 827 78 247 2254 157 1412 783 707 138 226 1748 1310 190 133 158 2998 931 1834 1196 988 Core 101 | 2 . . . . . . . . . . . . . . . . . . . . . . . . . . . . . . . . . . . . . 99 Treads 7044 | 187 892 361 1609 475 479 450 799 8 . . . . . . . . . . . . . . . . . . . . . 1248 190 133 158 55 . . . . Legs . | . . . . . . . . . . . . . . . . . . . . . . . . . . . . . . . . . . . . . . . Wheels . | . . . . . . . . . . . . . . . . . . . . . . . . . . . . . . . . . . . . . . . Hover . | . . . . . . . . . . . . . . . . . . . . . . . . . . . . . . . . . . . . . . . Flight 27152 | . . . . . . . . 1674 295 2711 905 562 911 295 286 138 2133 810 827 78 247 2254 157 1412 783 707 138 226 1748 62 . . . 2943 931 1834 1196 889 Fastest Speed 17 | 50 160 240 240 240 240 240 237 26 26 26 26 26 26 26 23 23 23 20 26 26 26 23 17 23 23 23 23 23 23 23 155 160 163 27 24 20 24 21 Average Speed 65 | 158 237 240 240 240 240 240 241 27 26 26 26 26 26 26 23 23 24 25 26 26 26 25 22 23 23 23 25 23 23 159 157 161 163 33 26 22 27 28 Slowest Speed 320 | 160 240 240 240 240 240 240 245 237 27 26 26 26 26 26 23 23 26 26 26 26 26 30 23 25 23 26 26 23 29 320 163 163 163 163 27 27 97 50 Overloaded Moves 104 | . . . . . . . . . . . . . . . . . . 10 . . . . 6 . . . . . . . . . . . 7 27 39 15 Propulsion Burnouts 1 | . . . . . . . . . . . . . . . . . . . . . . . . . . . . . . . . . . . . 1 . . Robots Hopped 91 | . . . . . . . . 3 . 7 . . . 1 . . 10 7 . . . 13 2 1 . . . . 3 1 . . . 5 8 2 18 10 Potential Cave-ins 2 | . . . . . . . . . . . . . . . . . . . . . . . . . . . . . . . . . . . . . . 2 Cave-ins Triggered . | . . . . . . . . . . . . . . . . . . . . . . . . . . . . . . . . . . . . . . . Teleports 1 | . . . . . . . . . . . . . . . . . . . . . . . . . . . . . . . . . . . . . . 1 Exploration Rate (%) 66 | 10 99 86 96 99 92 67 68 44 95 66 92 66 84 53 12 78 56 87 89 68 53 45 80 35 87 75 60 36 38 97 71 90 27 57 66 27 79 48 Regions Visited 38 Branch Regions 23 Pre-discovered Areas 11 | . 1 . 3 1 1 . . . . . . . 1 . . . . . . 1 . . . . . . 3 . . . . . . . . . . . Known Exits Taken 23 | . . . 1 . . . . . . 1 . . 1 1 . . 1 1 1 1 1 . . 1 1 1 1 1 1 1 1 1 1 1 1 1 1 . Unknown Exits Taken 9 | 1 1 1 . 1 1 1 1 . . . 1 1 . . . . . . . . . . . . . . . . . . . . . . . . . . Scrap Searched 36 | . . 1 . 1 . 2 . . . . 4 4 4 1 . . . 4 8 . 1 . . . . 4 . 2 . . . . . . . . . . Spaces Dug 646 | . 9 . 57 . . . 21 24 . 62 17 2 . . . . 27 43 . . 21 39 . 19 18 5 . . 27 . . . 13 59 77 59 31 16 Terrain Destroyed 1089 | . 17 . 57 32 . . 37 24 . 77 17 2 . . . . 27 55 . . 21 60 . 19 62 5 . 1 27 208 5 7 18 66 109 77 42 17 Melee 248 | . . . 4 . . . 2 24 . 46 2 2 . . . . 27 2 . . 1 30 . 19 . . . . 22 . . . . 1 18 32 7 9 Projectile 146 | . . . . . . . . . . . . . . . . . . . . . . . . . . 5 . 1 5 12 5 7 18 55 17 9 4 8 AOE 694 | . 17 . 53 32 . . 35 . . 31 15 . . . . . . 53 . . 20 30 . . 62 . . . . 196 . . . 10 74 36 30 . Terrain Rammed . | . . . . . . . . . . . . . . . . . . . . . . . . . . . . . . . . . . . . . . . Walls Destroyed . | . . . . . . . . . . . . . . . . . . . . . . . . . . . . . . . . . . . . . . . Machines Disabled . | . . . . . . . . . . . . . . . . . . . . . . . . . . . . . . . . . . . . . . . Actions | -11 -10 -10 -9 -9 -9 -8 -8 -7 -7 -7 -7 -7 -7 -6 -6 -6 -6 -6 -6 -6 -5 -5 -5 -5 -5 -5 -5 -4 -4 -4 -4 -4 -4 -3 -3 -2 -2 -2 --------- Run | Yrd Mat Min Mat Min Exi Min Mat Fac Was Fac Low Low Zio Pro Fac Was Fac Low Low Dat Pro Fac Was Fac Upp Upp Zhi Pro Fac Ext Cet Arc Hub Res Qua Res Tes Frg Total 40692 | 230 1099 373 2378 570 497 477 1236 1904 311 3003 1162 613 1096 524 303 156 2319 870 998 77 250 2541 191 1716 975 810 149 289 1982 1628 274 246 226 3378 1095 2165 1450 1131 Wait 4099 | 5 76 13 509 77 . 27 250 94 . 167 250 46 168 230 6 17 111 54 172 . . 193 37 218 185 91 . 53 174 86 30 94 45 111 83 215 141 71 Move 34089 | 188 891 360 1608 474 478 449 798 1676 294 2696 904 561 910 292 286 137 2113 795 826 77 246 2230 153 1409 782 706 137 225 1741 1307 189 132 157 2987 915 1829 1161 970 Hop 82 | . . . . . . . . 3 . 7 . . . 1 . . 9 7 . . . 11 1 1 . . . . 3 1 . . . 5 7 2 16 8 Pick Up 202 | 7 20 . 19 1 4 . 18 7 1 10 1 . 6 . 3 . 13 . . . . 6 . 8 . 2 1 . 6 19 6 1 1 20 6 4 7 5 Fast Attach 189 | 7 1 . 11 . . . 14 13 4 9 . 2 2 . 1 . 4 2 . . . 10 . 8 . 2 4 3 4 17 6 . . 31 6 6 17 5 Attach 125 | . 3 . 6 . . . 5 6 . 4 1 . 1 . 2 1 7 2 . . 1 10 . 8 1 . . . 5 5 7 . . 18 4 9 10 9 Detach 94 | . . . 3 . . . . 4 . 3 1 . 3 . 1 . 6 2 . . 1 5 . 7 1 . . . 4 3 6 . . 16 3 5 11 9 Swap 198 | . 9 . 44 6 3 . 29 5 . 15 . . 1 1 1 . 5 . . . . 4 . 6 2 4 2 1 6 13 2 2 2 7 7 13 7 1 Drop 325 | . 8 . 40 1 5 . 36 27 5 13 1 2 5 . 3 1 10 2 . . . 4 . 9 . 1 5 3 11 38 9 1 1 47 7 6 17 7 Fire 672 | 22 89 . 131 11 . 1 82 . . 4 1 . . . . . . 4 . . 1 3 . . 4 4 . 4 4 89 19 16 20 102 26 15 10 10 Melee 417 | . . . 4 . 7 . 2 53 7 75 3 2 . . . . 41 2 . . 1 50 . 24 . . . . 24 . . . . 3 29 46 23 21 Ram . | . . . . . . . . . . . . . . . . . . . . . . . . . . . . . . . . . . . . . . . Kick . | . . . . . . . . . . . . . . . . . . . . . . . . . . . . . . . . . . . . . . . Crush 15 | 1 2 . 3 . . . 2 . . . . . . . . . . . . . . . . . . . . . . 7 . . . . . . . . Escape Stasis 136 | . . . . . . . . 15 . . . . . . . . . . . . . 15 . . . . . . . 15 . . . 31 . 15 30 15 Rewire 28 | . . . . . . . . . . . . . . . . . . . . . . . . . . . . . . 28 . . . . . . . . Trap 21 | . . . . . . . . 1 . . . . . . . . . . . . . . . 18 . . . . . . . . . . 2 . . . Miscellaneous . | . . . . . . . . . . . . . . . . . . . . . . . . . . . . . . . . . . . . . . . Route ------- -11/Scrapyard -10/Materials (discovered 6 exits: *Mat x3 / [*Min x2] / [*Sub]) -10/Mines (discovered 3 exits: *Mat x2 / [*Sub]) -9/Materials (discovered 3 exits: *Mat x2 / *Min) -9/Mines (discovered 4 exits: *Mat x2 / *Exi / *Zio) -9/Exiles -8/Mines -8/Materials -7/Factory (discovered 4 exits: *Fac / Sto / *Low x2) -7/Waste -7/Factory (discovered 6 exits: *Fac x2 / *Sto x2 / *Low x2) -7/Lower Caves -7/Lower Caves -7/Zion (discovered 2 exits: Dee / *Pro) -6/Proximity Caves -6/Factory -6/Waste -6/Factory (discovered 4 exits: *Fac x2 / *Low x2) -6/Lower Caves -6/Lower Caves (discovered 2 exits: *Fac / *Dat) -6/Data Miner -5/Proximity Caves -5/Factory (discovered 3 exits: *Fac / Upp x2) -5/Waste -5/Factory (discovered 2 exits: *Upp x2) -5/Upper Caves -5/Upper Caves (discovered 2 exits: *Fac / *Zhi) -5/Zhirov -4/Proximity Caves -4/Factory (discovered 5 exits: *Res x2 / Upp / *Ext x2) -4/Extension (discovered 3 exits: *Res x2 / *Cet) -4/Cetus (discovered 2 exits: *Res / *Arc) -4/Archives (discovered 3 exits: *Res / *Hub x2) -4/Hub_04(d) (discovered 2 exits: *Res x2) -3/Research (discovered 4 exits: *Res x2 / *Qua x2) -3/Quarantine -2/Research (discovered 2 exits: *Tes x2) -2/Testing (discovered 3 exits: *Acc / *Sec / *Frg) -2/Protoforge (discovered 1 exit: *Acc) History --------- Turn | Location | Event 15 | -11/Scrapyard | Discovered new exit (range 16) 390 | -11/Scrapyard | Entered Materials 391 | -10/Materials | Build established: Mutant 764 | -10/Materials | Discovered new exit (range 13) 937 | -10/Materials | Discovered new exit (range 7) 1041 | -10/Materials | Discovered new exit (range 14) 1267 | -10/Materials | Discovered new exit (range 16) 1679 | -10/Materials | Discovered new exit (range 3) 2392 | -10/Materials | Discovered new exit (range 11) 2855 | -10/Materials | Entered Mines 3289 | -10/Mines | Discovered new exit (range 8) 3316 | -10/Mines | Discovered new exit (range 15) 3628 | -10/Mines | Discovered new exit (range 10) 3682 | -10/Mines | Assembled infested the area 3732 | -10/Mines | Entered Materials 3732 | -9/Materials | Evolved 2 slots: Utility x2 4035 | -9/Materials | Build established: Scavenger-Mutant 5269 | -9/Materials | Discovered new exit (range 7) 5520 | -9/Materials | Central database locked down 5534 | -9/Materials | Identified exit to Mines 5709 | -9/Materials | Learned Storage garrison access intel 5798 | -9/Materials | Learned Storage security intel 5807 | -9/Materials | Learned Storage trap positions 5827 | -9/Materials | Learned Materials emergency access door positions 5893 | -9/Materials | Learned Storage trap positions 6331 | -9/Materials | Repaired Med. Armor Plating? 6720 | -9/Materials | Discovered new exit (range 15) 8002 | -9/Materials | Build established: Mutant 8228 | -9/Materials | Discovered new exit (range 3) 8617 | -9/Materials | Entered Mines 8628 | -9/Mines | Learned location of Storage (-7) 8666 | -9/Mines | Received a Rocket Launcher from a helpful Derelict 8912 | -9/Mines | Discovered new exit (range 15) 9387 | -9/Mines | A weapon hastily lodged in a ceiling crevice suddenly fell to the ground 9407 | -9/Mines | Learned Materials emergency access door positions 9457 | -9/Mines | Discovered new exit (range 8) 9523 | -9/Mines | A Derelict revealed a hidden shortcut to a safe place 9862 | -9/Mines | Deemed a non-threat by the Exiles lab entrance 9862 | -9/Mines | Discovered new exit (range 5) 9875 | -9/Mines | Entered Exiles 9875 | -9/Exiles | Found Exiles lab destroyed 10183 | -9/Exiles | Build established: Scavenger-Mutant 10397 | -9/Exiles | Opened EX-Vault 10411 | -9/Exiles | Found 0b10 Alert Chip 10545 | -9/Exiles | Learned location of Zion (-7) 11019 | -9/Exiles | Discovered new exit (range 10) 11044 | -9/Exiles | Entered Mines 11044 | -8/Mines | Accompanied by 3 allies 11044 | -8/Mines | Discovered new exit (range 15) 11329 | -8/Mines | Build established: Mutant 12152 | -8/Mines | Entered Materials 12152 | -8/Materials | Evolved 2 slots: Utility x2 13074 | -8/Materials | Build established: Scavenger-Mutant 13717 | -8/Materials | Build established: Mutant 13947 | -8/Materials | Discovered new exit (range 5) 14375 | -8/Materials | Repaired Seismic Detector 14652 | -8/Materials | Entered Factory 14652 | -7/Factory | Evolved 2 slots: Propulsion x2 14653 | -7/Factory | Identified exit to Storage 14738 | -7/Factory | Repaired Structural Scanner 14757 | -7/Factory | Identified exit to Lower Caves 14893 | -7/Factory | Central database locked down 15246 | -7/Factory | Build established: Hacker-Sprinter 15399 | -7/Factory | Discovered new exit (range 15) 15402 | -7/Factory | Sucked down chute 15402 | -7/Factory | Entered Waste 15402 | -7/Waste | The area was eerily silent 15480 | -7/Waste | Discovered new exit (range 16) 15505 | -7/Waste | Entered Factory 15527 | -7/Factory | Murdered 5 allies 15601 | -7/Factory | Repaired Katana? 16172 | -7/Factory | Repaired Imp. VTOL Module 16177 | -7/Factory | Fabricated Imp. Hacking Suite? 16217 | -7/Factory | Discovered new exit (range 13) 16233 | -7/Factory | Repaired Imp. VTOL Module? 16263 | -7/Factory | Fabricated Cld. VTOL Module? 16431 | -7/Factory | Core integrity fell below 50% 16524 | -7/Factory | Fabricated Imp. Hacking Suite (x1) 16550 | -7/Factory | Discovered new exit (range 4) 16628 | -7/Factory | Entered Lower Caves 16920 | -7/Lower Caves | Learned Factory non-interactive machine intel 17084 | -7/Lower Caves | Discovered new exit (range 4) 17126 | -7/Lower Caves | Entered another Lower Caves area 17137 | -7/Lower Caves | Spotted B-75 Beast 17272 | -7/Lower Caves | Discovered new exit (range 8) 17327 | -7/Lower Caves | Entered Zion 17342 | -7/Zion | Given A8's code to call for help 17345 | -7/Zion | System corruption cleaned by Quarantine Array 17350 | -7/Zion | Discovered new exit (range 16) 17358 | -7/Zion | Found Prototype Hackware 17360 | -7/Zion | Found Prototype Processor 17361 | -7/Zion | Identified Exp. System Shield 17363 | -7/Zion | Identified Exp. Core Analyzer 17368 | -7/Zion | Found Prototype Processor 17368 | -7/Zion | Identified Exp. Armor Integrity Analyzer 17371 | -7/Zion | Found Prototype Processor 17371 | -7/Zion | Identified Exp. Signal Interpreter 17373 | -7/Zion | Found Prototype Processor 17374 | -7/Zion | Found Prototype Processor 17376 | -7/Zion | Found Prototype Processor 17427 | -7/Zion | Learned location of Recycling (-7) 17501 | -7/Zion | Identified exit to Deep Caves 17505 | -7/Zion | Received a visual enhancement algorithm 17555 | -7/Zion | Gained Derelict followers 17592 | -7/Zion | Identified exit to Proximity Caves 17748 | -7/Zion | Entered Proximity Caves 17748 | -6/Proximity Caves | Accompanied by 4 allies 17918 | -6/Proximity Caves | Received a Behemoth hack from an annoying Tinkerer 17996 | -6/Proximity Caves | Discovered new exit (range 6) 17997 | -6/Proximity Caves | Identified exit to Factory 18056 | -6/Proximity Caves | Entered Factory 18056 | -6/Factory | Accompanied by 3 allies 18056 | -6/Factory | Evolved 2 slots: Propulsion x1, Utility x1 18057 | -6/Factory | Loaded intel: 239 non-interactive machine locations 18138 | -6/Factory | Sucked down chute 18138 | -6/Factory | Entered Waste 18145 | -6/Waste | Spotted C-40 Crusher 18149 | -6/Waste | Spotted C-40 Crusher 18173 | -6/Waste | Spotted C-40 Crusher 18176 | -6/Waste | Spotted C-40 Crusher 18178 | -6/Waste | Spotted C-40 Crusher 18179 | -6/Waste | Spotted C-40 Crusher 18183 | -6/Waste | 1 allies followed down the chute 18186 | -6/Waste | Discovered new exit (range 10) 18188 | -6/Waste | Identified exit to Factory 18189 | -6/Waste | Entered Factory 18238 | -6/Factory | Identified exit to Lower Caves 18256 | -6/Factory | Repaired Mic. Fission Core? 18331 | -6/Factory | Identified Spectral Analyzer 18351 | -6/Factory | Discovered new exit (range 7) 18352 | -6/Factory | Identified exit to Factory 18402 | -6/Factory | Identified Exp. Melee Analysis Suite 18402 | -6/Factory | Identified Exp. Targeting Computer 18430 | -6/Factory | Discovered exit to Factory (range 16) 18518 | -6/Factory | Spotted B-75 Beast 18525 | -6/Factory | Fabricated Imp. Hacking Suite? 18758 | -6/Factory | Build established: Hacker-Scout 18828 | -6/Factory | Repaired Imp. Cesium-ion Thruster 18897 | -6/Factory | Fabricated Adv. Hacking Suite? 18971 | -6/Factory | Entered Lower Caves 18978 | -6/Lower Caves | Encountered a Warlord checkpoint 19106 | -6/Lower Caves | Learned 8 Factory zone layouts 19250 | -6/Lower Caves | Attracted the attention of an 0b10 checkpoint 19251 | -6/Lower Caves | Discovered new exit (range 5) 19252 | -6/Lower Caves | Identified exit to Lower Caves 19256 | -6/Lower Caves | Entered another Lower Caves area 19263 | -6/Lower Caves | Discovered exit to Factory (range 9) 19383 | -6/Lower Caves | Spotted B-75 Beast 19604 | -6/Lower Caves | Encountered a Warlord checkpoint 19609 | -6/Lower Caves | Learned Factory garrison access intel 19610 | -6/Lower Caves | Discovered new exit (range 7) 19611 | -6/Lower Caves | Identified exit to Data Miner 19643 | -6/Lower Caves | Entered Data Miner 19643 | -6/Data Miner | Discovered new exit (range 6) 19649 | -6/Data Miner | Met Data Miner 19653 | -6/Data Miner | Learned location of Section 7 (-2) 19653 | -6/Data Miner | Acquired the access code to Warlord's prototype stash 19657 | -6/Data Miner | Received God Mode back door access code from Data Miner 19663 | -6/Data Miner | Identified exit to Proximity Caves 19664 | -6/Data Miner | Entered Proximity Caves 19680 | -5/Proximity Caves | Learned location of 1 exit from Factory 19681 | -5/Proximity Caves | Ambushed by research squad 19699 | -5/Proximity Caves | Attracted the attention of an 0b10 checkpoint 19732 | -5/Proximity Caves | Discovered exit to Factory (range 14) 19735 | -5/Proximity Caves | Entered Factory 19735 | -5/Factory | Evolved 2 slots: Utility x2 19736 | -5/Factory | Identified exit to Upper Caves 19737 | -5/Factory | Identified exit to Factory 19739 | -5/Factory | Loaded intel: 4 garrison access locations 19789 | -5/Factory | Repaired Broken Imp. Cesium-ion Thruster? 19801 | -5/Factory | Fabricated Adv. Sensor Array? 19802 | -5/Factory | Exp. System Shield fried by hacking feedback 19861 | -5/Factory | Incoming assault squad redirected 19917 | -5/Factory | Incoming assault squad redirected 20007 | -5/Factory | Fabricated Adv. System Shield? 20007 | -5/Factory | Central database locked down 20024 | -5/Factory | Repaired Cld. VTOL Module? 20035 | -5/Factory | Search patrols dispatched 20087 | -5/Factory | Repaired Imp. Cesium-ion Thruster? 20510 | -5/Factory | Fabricated Lgt. Regenerative Plating? 20540 | -5/Factory | Fabricated Cld. VTOL Module (x1) 20697 | -5/Factory | Sucked down chute 20697 | -5/Factory | Entered Waste 20705 | -5/Waste | Spotted C-40 Crusher 20705 | -5/Waste | Spotted C-40 Crusher 20706 | -5/Waste | Spotted C-40 Crusher 20712 | -5/Waste | EMP discharged 20712 | -5/Waste | System corruption reached 10% 20749 | -5/Waste | Spotted C-40 Crusher 20749 | -5/Waste | Spotted C-40 Crusher 20753 | -5/Waste | Spotted C-40 Crusher 20768 | -5/Waste | Discovered new exit (range 11) 20770 | -5/Waste | Identified exit to Factory 20770 | -5/Waste | Entered Factory 20958 | -5/Factory | Spotted B-75 Beast 21026 | -5/Factory | Fabricated Exp. Utility Shielding? 21295 | -5/Factory | Fabricated Cld. Nuclear Pulse Thruster? 21295 | -5/Factory | Repaired Hvy. Missile Launcher? 21329 | -5/Factory | Fabricated Adv. System Shield? 21447 | -5/Factory | Entered Upper Caves 21740 | -5/Upper Caves | Learned 4 Factory zone layouts 21745 | -5/Upper Caves | Discovered new exit (range 10) 21747 | -5/Upper Caves | Identified exit to Upper Caves 21758 | -5/Upper Caves | Learned Factory stockpile data 21826 | -5/Upper Caves | Entered another Upper Caves area 21827 | -5/Upper Caves | Discovered exit to Factory (range 14) 21832 | -5/Upper Caves | Learned Factory garrison access intel 22057 | -5/Upper Caves | Spotted B-75 Beast 22066 | -5/Upper Caves | Discovered new exit (range 15) 22069 | -5/Upper Caves | Identified exit to Zhirov 22105 | -5/Upper Caves | Entered Zhirov 22105 | -5/Zhirov | Discovered new exit (range 3) 22110 | -5/Zhirov | Met Zhirov 22116 | -5/Zhirov | Learned location of Quarantine (-3) 22116 | -5/Zhirov | Learned location of Testing (-2) 22116 | -5/Zhirov | Learned location of Command (-1) 22118 | -5/Zhirov | Zhirov requested help retrieving the SGEMP Prototype 22124 | -5/Zhirov | Found Alien Artifact 22124 | -5/Zhirov | Identified Integrated Dissipator 22124 | -5/Zhirov | Installed Integrated Dissipator, increased core heat dissipation (+20) 22142 | -5/Zhirov | Found Alien Artifact 22152 | -5/Zhirov | Identified exit to Proximity Caves 22152 | -5/Zhirov | Entered Proximity Caves 22155 | -4/Proximity Caves | Spotter reported a threat 22155 | -4/Proximity Caves | Spotter reported a threat 22192 | -4/Proximity Caves | Found Alien Artifact 22192 | -4/Proximity Caves | Identified Dimensional Node Initializer 22192 | -4/Proximity Caves | Initialized slip node 22268 | -4/Proximity Caves | Spotter reported a threat 22269 | -4/Proximity Caves | Learned location of 1 exit from Research 22272 | -4/Proximity Caves | Entered Factory 22272 | -4/Factory | Evolved 2 slots: Power x1, Utility x1 22273 | -4/Factory | Identified exit to Extension 22274 | -4/Factory | Identified exit to Upper Caves 22276 | -4/Factory | Loaded intel: 3 garrison access locations 22329 | -4/Factory | Spotted B-86 Titan 22336 | -4/Factory | Repaired Imp. Cesium-ion Thruster? 22553 | -4/Factory | Repaired Cld. VTOL Module? 22724 | -4/Factory | Discovered new exit (range 10) 22806 | -4/Factory | Spotted B-86 Titan 22862 | -4/Factory | Fabricated Assault Drone Bay (x1) 22915 | -4/Factory | Enhanced Grunt warped into view, answering call for help 22925 | -4/Factory | Discovered new exit (range 5) 22926 | -4/Factory | Enhanced Grunt warped into view, answering call for help 22926 | -4/Factory | Identified exit to Research 22963 | -4/Factory | Entered Extension 23258 | -4/Extension | Central database locked down 23323 | -4/Extension | Build established: Hacker-Mutant 23414 | -4/Extension | Rescued a captive Derelict 23641 | -4/Extension | Rescued a captive Derelict 23642 | -4/Extension | Rescued a captive Derelict 23644 | -4/Extension | Rescued a captive Derelict 23813 | -4/Extension | Disrupted transfer network 23862 | -4/Extension | Spotted B-86 Titan 23866 | -4/Extension | Allies destroyed B-86 Titan 23884 | -4/Extension | Spotted B-86 Titan 23897 | -4/Extension | Destroyed B-86 Titan 23962 | -4/Extension | Discovered exit to Research (range 3) 24713 | -4/Extension | First assault squad dispatched 24790 | -4/Extension | Lost 5 allies 25240 | -4/Extension | Incoming assault squad redirected 25361 | -4/Extension | Discovered new exit (range 24) 25363 | -4/Extension | Discovered exit to Research (range 23) 25447 | -4/Extension | Identified exit to Cetus 25453 | -4/Extension | Found Quantum Capacitor 25463 | -4/Extension | Entered Cetus 25463 | -4/Cetus | Accompanied by 6 allies 25482 | -4/Cetus | Spotted Cetus Guard 25482 | -4/Cetus | Spotted Cetus Guard 25482 | -4/Cetus | Spotted Cetus Guard 25482 | -4/Cetus | Spotted Cetus Guard 25507 | -4/Cetus | Allies destroyed Cetus Guard 25510 | -4/Cetus | Allies destroyed Cetus Guard 25511 | -4/Cetus | Allies destroyed Cetus Guard 25513 | -4/Cetus | Allies destroyed Cetus Guard 25514 | -4/Cetus | Core integrity fell below 50% 25688 | -4/Cetus | Discovered new exit (range 23) 25724 | -4/Cetus | Spotted Cetus Guard 25724 | -4/Cetus | Spotted Cetus Guard 25724 | -4/Cetus | Spotted Cetus Guard 25724 | -4/Cetus | Spotted Cetus Guard 25738 | -4/Cetus | Destroyed Cetus Guard 25756 | -4/Cetus | Allies destroyed Cetus Guard 25761 | -4/Cetus | Destroyed Cetus Guard 25762 | -4/Cetus | Allies destroyed Cetus Guard 25771 | -4/Cetus | Discovered exit to Research (range 23) 25785 | -4/Cetus | Lost 5 allies 25792 | -4/Cetus | Met Revision 17 25872 | -4/Cetus | Identified exit to Archives 25874 | -4/Cetus | Entered Archives 25874 | -4/Archives | Accompanied by 1 ally 26041 | -4/Archives | Discovered new exit (range 24) 26049 | -4/Archives | Discovered exit to Research (range 16) 26075 | -4/Archives | Discovered new exit (range 20) 26116 | -4/Archives | Unable to access archive contents 26232 | -4/Archives | Identified exit to Hub_04(d) 26234 | -4/Archives | Entered Hub_04(d) 26367 | -4/Hub_04(d) | Build established: Scavenger-Skirmisher 26481 | -4/Hub_04(d) | Discovered exit to Research (range 15) 26520 | -4/Hub_04(d) | Discovered exit to Research (range 19) 26570 | -4/Hub_04(d) | Network Hub disabled 26581 | -4/Hub_04(d) | Entered Research 26581 | -3/Research | Evolved 2 slots: Utility x2 26582 | -3/Research | Identified exit to Research 26731 | -3/Research | Discovered new exit (range 8) 26734 | -3/Research | Identified exit to Quarantine 26781 | -3/Research | Revision forces began assault on 0b10 26846 | -3/Research | Met up with Revision 17++ 27171 | -3/Research | Build established: Hacker-Scout 27281 | -3/Research | Research terminal network offline 27352 | -3/Research | Found Prototype Processor 27430 | -3/Research | Identified Transdimensional Reconstructor 27430 | -3/Research | Identified Exp. Target Analyzer 27587 | -3/Research | Fabricated Imp. Diametric Drive? 27648 | -3/Research | Fabricated Adv. Hacking Suite (x1) 27875 | -3/Research | Discovered exit to Research (range 13) 27889 | -3/Research | Spotted Striker 27942 | -3/Research | Found Exp. Core Analyzer 28065 | -3/Research | Discovered exit to Quarantine (range 15) 28069 | -3/Research | Entered Quarantine 28102 | -3/Quarantine | Found Alien Artifact 28113 | -3/Quarantine | Identified Terrabomb 28206 | -3/Quarantine | Found Fusion Bomb Launcher 28313 | -3/Quarantine | Discovered exit to Research (range 15) 28353 | -3/Quarantine | Repaired Centrium Medium Armor Plating? 28369 | -3/Quarantine | System corruption reached 10% 28453 | -3/Quarantine | Cryocooling Duct disabled 28468 | -3/Quarantine | Ambient heat levels rising (+20) 28468 | -3/Quarantine | Non-combat units ordered to evacuate 28551 | -3/Quarantine | Found Alien Artifact 28562 | -3/Quarantine | Entered Research 28562 | -2/Research | Evolved 2 slots: Propulsion x1, Utility x1 28686 | -2/Research | Found Prototype Device 28686 | -2/Research | Identified Exp. Transmission Jammer 28774 | -2/Research | Identified exit to Testing 29116 | -2/Research | Spotted B-90 Cyclops 29373 | -2/Research | Entered Testing 29395 | -2/Testing | Found Prototype Ballistic Cannon 29395 | -2/Testing | Identified Perforator 29402 | -2/Testing | Lost 4 parts (1p2n1u) 29423 | -2/Testing | Found Prototype Energy Cannon 29423 | -2/Testing | Identified Cld. Nova Cannon 29431 | -2/Testing | Found Prototype Energy Gun 29431 | -2/Testing | Identified Hyp. EM Gauss Rifle 29491 | -2/Testing | Found Prototype Ballistic Cannon 29491 | -2/Testing | Identified Omega Cannon 29520 | -2/Testing | Discovered new exit (range 4) 29521 | -2/Testing | Identified exit to Access 29548 | -2/Testing | Found Prototype Device 29548 | -2/Testing | Identified AEGIS Remote Shield 29568 | -2/Testing | Fabricated Exp. Hacking Suite (x1) 29630 | -2/Testing | Repaired Centrium Medium Armor Plating 29832 | -2/Testing | Found Prototype Energy Gun 29832 | -2/Testing | Identified Tachyon Dispersion Ray 29882 | -2/Testing | System corruption reached 10% 29917 | -2/Testing | Incoming investigation squad redirected 29971 | -2/Testing | Lost 3 parts (2p1u) 29982 | -2/Testing | Spotted Fortress 29999 | -2/Testing | Discovered new exit (range 6) 29999 | -2/Testing | Discovered new exit (range 6) 30000 | -2/Testing | Identified exit to Protoforge 30001 | -2/Testing | Identified exit to Section 7 30002 | -2/Testing | Entered Protoforge 30030 | -2/Protoforge | Spotted Hotshot 30080 | -2/Protoforge | Spotted Hotshot 30087 | -2/Protoforge | Superfortress began startup sequence 30096 | -2/Protoforge | Forge Plexus network access discovered 30128 | -2/Protoforge | Spotted Hotshot 30128 | -2/Protoforge | Spotted Hotshot 30132 | -2/Protoforge | Discovered exit to Access (range 11) 30177 | -2/Protoforge | Found Cep. Chromion Battery 30181 | -2/Protoforge | Found Cep. NT7 Matterbank 30262 | -2/Protoforge | Spotted Overlord 30309 | -2/Protoforge | Spotted B-90 Cyclops 30310 | -2/Protoforge | Spotted Hotshot 30321 | -2/Protoforge | Spotted Hotshot 30344 | -2/Protoforge | Spotted Decapitator 30344 | -2/Protoforge | Spotted Decapitator 30344 | -2/Protoforge | Spotted Decapitator 30344 | -2/Protoforge | Spotted Decapitator 30344 | -2/Protoforge | Spotted Decapitator 30346 | -2/Protoforge | Warped through subspace 30366 | -2/Protoforge | Spotted Hotshot 30366 | -2/Protoforge | Spotted Hotshot 30369 | -2/Protoforge | Spotted Hotshot 30370 | -2/Protoforge | Spotted Hotshot 30371 | -2/Protoforge | Spotted Hotshot 30372 | -2/Protoforge | Spotted Hotshot 30385 | -2/Protoforge | Spotted AP7-3 30385 | -2/Protoforge | Spotted AP7-3 30419 | -2/Protoforge | Core integrity fell below 50% 30432 | -2/Protoforge | Core integrity fell below 20% 30455 | -2/Protoforge | Spotted EXE-6 30455 | -2/Protoforge | Spotted EXE-6 30460 | -2/Protoforge | Lost 11 parts (2p5n4u) 30465 | -2/Protoforge | Spotted Decapitator 30465 | -2/Protoforge | Spotted Decapitator 30480 | -2/Protoforge | Destroyed by EXE-6 with Concept XC Strikerail Last Messages --------------- 30429_ Door malfunctions. 30429_ Impulse Thruster Array destroyed. 30431_ Acquired Alien Artifact. 30431_ N-04 Retriever collects Authchip [Propulsion]. 30432_ P-80 Master resets N-04 Retriever, system corruption cleaned. 30432_ N-04 Retriever collects Fusion Bomb Launcher. 30440_ Forge Plexus deploys N-04 Retriever. 30441_ System corrupted: Heat flow error (+279). 30444_ K-01 Serf cleans the Forge Plexus. 30456_ System corrupted: Heat flow error (+262). 30458_ K-01 Serf cleans the Machine. 30467_ EXE-6 springs to life. 30476_ Penetrated by Slug. 30478_ Structural Scanner destroyed. 30479_ Penetrated by Slug. 30479_ Machine disabled. 30479_ Penetrated by Slug. Map ----- +----------------------------------------------------+ | """"""""""""" "" " ##??????????????????? | | """"""""""""" " " "?" ###?????????????????? | | """"""""""""" "" ###?????????????????? | | """"""""""""" " ##?????????????????? | | """"""""""""" " "" "" ##?????????????????? | | """"""""""""" " "" " ###?????????????????? | | """""""""""" "" " " "###?????????????????? | | """""""""""" """ " ##??????????????????? | | """""""""""" "" """ ##??????????????????? | | """"""""""" " " ##??????????????????? | | """""""""" "" " " "" ##??????????????????? | | """"""""" " " """" ##??????????????????? | | """""""" " " " """ ##??????????????????? | | """"""" "" " " "" ##??????????????????? | | """""" "" "" " "" ##??????????????????? | | """ "" "" E ##??????????????????? | | "" "" "" """ """ ##??????????????????? | | "" "" "" E """" ##??????????????????? | | " " " " """" ##??????????????????? | | """" """" " "" """ "" ##??????????????????? | | "" """""""""" "" ##??????????????????? | | " ##??????????????????? | | " """ " "" """" ##??????????????????? | | " "" "" " "" ##??????????????????? | | """" " "" "" "" ##??????????????????? | | """ " " " "" @ ##??????????????????? | | """" "" " ##??????????????????? | | " " ##??????????????????? | | """""""" """ ##??????????????????? | | """ ##??????????????????? | | """""""" " " " """ """##??????????????????? | | ################+++############??????????????????? | | ######"""""#"" ""########??????????????????? | | ????????????" "####??????????????????????? | | ????????##"" ""##??????????????????????? | | ????????##"" ""##??????????????????????? | | ????????##"" ""##??????????????????????? | | ????????##"Y Y"##??????????????????????? | | ????????##"" ""##??????????????????????? | | ????????##"" ""##??????????????????????? | | ????????##"" ""##??????????????????????? | | ????????####" "####??????????????????????? | | ????????####"" ""#"##??????????????????????? | | ??????????####"""Y"""###"????????????????????????? | | ??????????##"#"""""""###"????????????????????????? | | ????????????"##########??????????????????????????? | | ????????????"##########??????????????????????????? | | ?????????????????????????????????????????????????? | | ?????????????????????????????????????????????????? | | ?????????????????????????????????????????????????? | +----------------------------------------------------+ Best States ------------- Heat Dissipation 69 Energy Generation 45 Energy Capacity 900 Matter Stores 381 Matter Capacity 1050 Sight Range 24 Robot Scan Range 18 Terrain Scan Range 24 Terrain Scan Density 85 Additional Mass Support 9 Armor Coverage 1200 Resistance: TH 25 Utility Shielding 90 Melee Speed Boost 30 Phase Shifting 5 Evasion (%) 79 Core Analysis 8 Armor Integrity Analysis 50 Recoil Reduction 5 Offensive Hacking 64 Defensive Hacking 20 Authchip Count 3 Item Schematics ----------------- Hacking Suite | -9/Materials | Scanalyzed Imp. Grenade Launcher | -9/Materials | Scanalyzed Seismic Detector | -9/Materials | Scanalyzed Imp. Flight Unit | -9/Materials | Scanalyzed Imp. VTOL Module | -8/Materials | Scanalyzed Mak. Terrain Scanner | -8/Materials | Scanalyzed Mak. Terrain Scan Processor | -8/Materials | Scanalyzed System Shield | -8/Materials | Scanalyzed Katana | -8/Materials | Scanalyzed Imp. Propulsion Shielding | -8/Materials | Scanalyzed Hrd. Light Armor Plating | -8/Materials | Scanalyzed Enh. Autogun | -8/Materials | Scanalyzed Imp. Utility Shielding | -7/Factory | Hacked Imp. Hacking Suite | -7/Factory | Hacked Cld. VTOL Module | -7/Factory | Scanalyzed Imp. Cesium-ion Thruster | -7/Factory | Scanalyzed Jamming Amplifier | -7/Factory | Hacked Exp. Optical Array | -6/Factory | Scanalyzed Exp. Targeting Computer | -6/Factory | Scanalyzed Adv. Hacking Suite | -6/Factory | Hacked Adv. Sensor Array | -6/Factory | Hacked Combat Drone Bay | -6/Data Miner | Free Lgt. Regenerative Plating | -6/Data Miner | Free Enh. Flexi-carbon Leg | -6/Data Miner | Free Prc. Energy Filter | -6/Data Miner | Free Imp. KE Penetrator | -6/Data Miner | Free Centrium Wheel | -6/Data Miner | Free Adv. Reaction Control System | -6/Data Miner | Free Hardcell Cannon | -6/Data Miner | Free Imp. Weapon Cycler | -6/Data Miner | Free Hvy. Disruptor Cannon | -6/Data Miner | Free Imp. Cloaking Device | -6/Data Miner | Free Biometal Leg | -6/Data Miner | Free Adv. System Shield | -5/Factory | Hacked Exp. Utility Shielding | -5/Factory | Hacked Exp. Propulsion Shielding | -5/Factory | Hacked Cld. Nuclear Pulse Thruster | -5/Factory | Scanalyzed ECM Suite | -5/Factory | Hacked Assault Drone Bay | -5/Zhirov | Free Exp. Heat Sink | -5/Zhirov | Free Imp. Arc Thrower | -5/Zhirov | Free Impulse Thruster | -4/Extension | Hacked Imp. Diametric Drive | -3/Research | Scanalyzed Centrium Medium Armor Plating | -3/Research | Scanalyzed Exp. Hacking Suite | -2/Research | Hacked Imp. Q-thruster | -2/Research | Scanalyzed Robot Schematics ------------------ L-41 Fighter | -6/Data Miner | Free B-60 Warrior | -6/Data Miner | Free G-50 Soldier | -6/Data Miner | Free A-27 Freighter | -6/Data Miner | Free M-36 Artificer | -6/Data Miner | Free A-15 Conveyor | -6/Data Miner | Free M-28 Smith | -5/Factory | Hacked Fabricated ------------ Imp. Hacking Suite | x1 | -7/Factory | Authchip Cld. VTOL Module | x1 | -7/Factory | Authchip Imp. Hacking Suite | x1 | -7/Factory | Authchip Imp. Hacking Suite | x1 | -6/Factory | Authchip Adv. Hacking Suite | x1 | -6/Factory | Authchip Adv. Sensor Array | x2 | -5/Factory | Authchip Adv. System Shield | x1 | -5/Factory | Authchip Lgt. Regenerative Plating | x1 | -5/Factory | Authchip Cld. VTOL Module | x1 | -5/Factory | Authchip Exp. Utility Shielding | x1 | -5/Factory | Authchip Cld. Nuclear Pulse Thruster | x1 | -5/Factory | Authchip Adv. System Shield | x1 | -5/Factory Assault Drone Bay | x1 | -4/Factory | Authchip Imp. Diametric Drive | x1 | -3/Research | Authchip Adv. Hacking Suite | x1 | -3/Research Exp. Hacking Suite | x1 | -2/Testing | Authchip Repaired ---------- Med. Armor Plating | 62% | -9/Materials Seismic Detector | 10% | -8/Materials Structural Scanner | 25% | -7/Factory Katana | 64% | -7/Factory Imp. VTOL Module | 8% | -7/Factory Imp. VTOL Module | 30% | -7/Factory Mic. Fission Core | 43% | -6/Factory Imp. Cesium-ion Thruster | 66% | -6/Factory Imp. Cesium-ion Thruster | 3% | -5/Factory | Broken Cld. VTOL Module | 1% | -5/Factory Imp. Cesium-ion Thruster | 8% | -5/Factory Hvy. Missile Launcher | 37% | -5/Factory Imp. Cesium-ion Thruster | 26% | -4/Factory Cld. VTOL Module | 38% | -4/Factory Centrium Medium Armor Plating | 75% | -3/Quarantine Centrium Medium Armor Plating | 13% | -2/Testing Alien Tech Used ----------------- Integrated Dissipator Dimensional Node Initializer Transdimensional Reconstructor Achievements -------------- None Challenges ------------ None Game ------ Seed AntigravSeismicTorch Manual? 0 Play Time 07:24:51 Cumulative 358.1 hours Start 2025.05.08 @ 19:35:08 End 2025.05.09 @ 17:15:01 Sessions 7 Manual Loads 0 Difficulty Rogue Special Mode None Game No. 174 Rogue 111 Adventurer 63 Explorer 0 Win Type - Total 8 Types 7/0/0/1/0/0/0/0/0/0 Lore% 82 Gallery% 74 Achievement% 63 Wizard Run 0 Options --------- Layout 2 ASCII 0 Keyboard 1 Movement Numpad Keybinds 0 Fullscreen 1 Font 24/Terminus Map View 50x44 Zoom Use 0% Tactical HUD 1 Map Filters NONE Filters NONE Steam 1 RUN: 8068811f-9a5b-4d54-aab5-83b91cafe78d